Workbook

Sheet Heren - Ptn
B1: 2015 HEREN - Punten | C1: 2015-02-14 | D1: 2015-02-15 | E1: 2015-02-21 | F1: 2015-02-22 | G1: 2015-02-28 | H1: Februari | I1: 2015-03-01 | J1: 2015-03-07 | K1: 2015-03-08 | L1: 2015-03-14 | M1: 2015-03-15 | N1: 2015-03-21 | O1: 2015-03-22 | P1: 2015-03-28 | Q1: 2015-03-29 | R1: Maart | S1: 2015-04-02 | T1: 2015-04-04 | U1: 2015-04-05 | V1: 2015-04-06 | W1: 2015-04-09 | X1: 2015-04-11 | Y1: 2015-04-12 | Z1: 2015-04-16 | AA1: 2015-04-18 | AB1: 2015-04-19 | AC1: UITPIJLING | AD1: 2015-04-23 | AE1: 2015-04-25 | AF1: UITPIJLING | AG1: 2015-04-26 | AH1: 2015-04-30 | AI1: April | AJ1: 2015-05-01 | AK1: 2015-05-02 | AL1: 2015-05-03 | AM1: 2015-05-07 | AN1: 2015-05-09 | AO1: 2015-05-10 | AP1: 2015-05-12 | AQ1: 2015-05-14 | AR1: 2015-05-16 | AS1: 2015-05-17 | AT1: 2015-05-21 | AU1: 2015-05-23 | AV1: 2015-05-24 | AW1: 2015-05-25 | AX1: 2015-05-28 | AY1: 2015-05-30 | AZ1: 2015-05-31 | BA1: Mei | BB1: 2015-06-04 | BC1: 2015-06-06 | BD1: 2015-06-07 | BE1: 2015-06-11 | BF1: 2015-06-13 | BG1: 2015-06-14 | BH1: ETENTJE 14/06 | BI1: 2015-06-18 | BJ1: 2015-06-20 | BK1: 2015-06-21 | BL1: 2015-06-25 | BM1: 2015-06-27 | BN1: 2015-06-28 | BO1: Juni | BP1: 2015-07-04 | BQ1: 2015-07-05 | BR1: 2015-07-09 | BS1: 2015-07-11 | BT1: 2015-07-12 | BU1: 2015-07-16 | BV1: 2015-07-18 | BW1: 2015-07-19 | BX1: 2015-07-21 | BY1: 2015-07-23 | BZ1: 2015-07-23 | CA1: 2015-07-25 | CB1: 2015-07-26 | CC1: 27&28/07/2015 | CD1: 2015-07-30 | CE1: 2015-07-30 | CF1: Juli | CG1: 2015-08-01 | CH1: 2015-08-02 | CI1: 2015-08-05 | CJ1: 2015-08-06 | CK1: 2015-08-06 | CL1: 2015-08-08 | CM1: 2015-08-09 | CN1: 2015-08-13 | CO1: 2015-08-13 | CP1: 2015-08-15 | CQ1: 2015-08-16 | CR1: 2015-08-20 | CS1: 2015-08-21 | CT1: 2015-08-22 | CU1: 2015-08-23 | CV1: 2015-08-29 | CW1: 2015-08-30 | CX1: Augustus | CY1: 2015-09-02 | CZ1: UITPIJLING | DA1: 2015-09-03 | DB1: 2015-09-05 | DC1: 2015-09-06 | DD1: 2015-09-09 | DE1: 2015-09-10 | DF1: 2015-09-12 | DG1: 2015-09-13 | DH1: 2015-09-18 | DI1: 2015-09-19 | DJ1: 2015-09-20 | DK1: 2015-09-24 | DL1: 2015-09-26 | DM1: 2015-09-27 | DN1: September | DO1: 561 - BRUGGENROUTE | DP1: 513 - HEIRNISROUTE | DQ1: 523 - PARKINGROUTE | DR1: 512-HEIRNISROUTE 1 | DS1: 524- AMALRIKROUTE | DT1: Permanenten | DU1: EINDSTAND
A2: 1 | B2: Anseau Stefan | H2: =SUM(C2:F2) -> 0 | R2: =SUM(I2:Q2) -> 0 | AI2: =SUM(S2:AG2) -> 0 | BA2: =SUM(AJ2:AZ2) -> 0 | BO2: =SUM(BB2:BN2) -> 0 | CF2: =SUM(BP2:CE2) -> 0 | CX2: =SUM(CG2:CW2) -> 0 | DN2: =SUM(CY2:DM2) -> 0 | DT2: =SUM(DO2:DS2) -> 0 | DU2: =H2+R2+AI2+BA2+BO2+CF2+CX2+DN2+DT2 -> 0
A3: =A2+1 -> 2 | B3: Baekelandt James | F3: 2 | H3: 2 | K3: 2 | R3: 2 | Y3: 2 | AI3: =SUM(S3:AG3) -> 2 | AN3: 2 | BA3: 2 | BO3: 0 | CF3: 0 | CX3: 0 | DN3: 0 | DT3: 0 | DU3: 8
A4: =A3+1 -> 3 | B4: Baeyens Hendrik | H4: 0 | K4: 2 | R4: 2 | AG4: 3 | AI4: 3 | AK4: 2 | AO4: 2 | AR4: 2 | AV4: 2 | BA4: 8 | BO4: 0 | CF4: 0 | CX4: 0 | DN4: 0 | DT4: 0 | DU4: 13
A5: 4 | B5: Broekaert Philip | C5: 2 | D5: 2 | E5: 2 | G5: 2 | H5: =SUM(C5:G5) -> 8 | I5: 2 | J5: 2 | K5: 2 | L5: 2 | M5: 2 | R5: 10 | V5: 2 | X5: 2 | Y5: 2 | AA5: 2 | AB5: 2 | AG5: 3 | AI5: 13 | AJ5: 4 | AO5: 2 | AQ5: 2 | AR5: 2 | AT5: 1 | AU5: 2 | AV5: 2 | AW5: 4 | BA5: 19 | BC5: 5 | BD5: 2 | BG5: 2 | BH5: 2 | BK5: 2 | BO5: 13 | BS5: 2 | BT5: 2 | BV5: 2 | BW5: 2 | CB5: 2 | CF5: 10 | CG5: 2 | CH5: 4 | CL5: 4 | CP5: 2 | CQ5: 2 | CU5: 2 | CX5: 16 | DI5: 2 | DJ5: 2 | DL5: 2 | DM5: 2 | DN5: 8 | DT5: 0 | DU5: 97
A6: 5 | B6: Cantaert Steven | H6: =SUM(C6:G6) -> 0 | R6: 0 | AG6: 3 | AI6: 3 | BA6: 0 | BO6: 0 | CF6: 0 | CX6: 0 | DN6: 0 | DT6: 0 | DU6: 3
A7: 6 | B7: Daneels Pieter | C7: 2 | H7: 2 | R7: 0 | AI7: 0 | AK7: 2 | BA7: 2 | BO7: 0 | CF7: 0 | CX7: 0 | DN7: =SUM(CY7:DM7) -> 0 | DT7: =SUM(DO7:DS7) -> 0 | DU7: 4
A8: 7 | B8: De Geyter Victor | H8: 0 | N8: 4 | R8: 4 | AB8: 2 | AI8: 2 | AJ8: 4 | AK8: 4 | AQ8: 4 | AR8: 2 | AU8: 2 | AY8: 2 | AZ8: 2 | BA8: 20 | BC8: 5 | BD8: 2 | BG8: 2 | BH8: 2 | BK8: 2 | BO8: 13 | BP8: 2 | BQ8: 2 | BS8: 2 | BT8: 2 | BX8: 2 | BY8: 2 | CE8: 2 | CF8: 14 | CG8: 2 | CH8: 2 | CP8: 2 | CQ8: 2 | CT8: 2 | CU8: 2 | CV8: 2 | CW8: 4 | CX8: 18 | CY8: 3 | DD8: 2 | DG8: 2 | DJ8: 4 | DL8: 2 | DM8: 2 | DN8: 15 | DT8: 0 | DU8: 86
A9: 8 | B9: De Groote Dimitri | H9: 0 | K9: 2 | O9: 2 | R9: 4 | AI9: 0 | BA9: 0 | BC9: 5 | BG9: 2 | BO9: 7 | CB9: 2 | CF9: 2 | CG9: 2 | CT9: 2 | CX9: 4 | DN9: 0 | DT9: 0 | DU9: 17
A10: 9 | B10: De Guisme Christiaan | D10: 2 | E10: 2 | H10: 4 | I10: 2 | J10: 2 | K10: 2 | R10: 6 | X10: 2 | Y10: 2 | AA10: 2 | AI10: 6 | AN10: 2 | AO10: 2 | AQ10: 2 | AS10: 2 | AY10: 2 | AZ10: 2 | BA10: 12 | BC10: 5 | BD10: 2 | BK10: 2 | BO10: 9 | BV10: 2 | BW10: 2 | BX10: 2 | BY10: 2 | CA10: 2 | CB10: 2 | CE10: 2 | CF10: 14 | CG10: 2 | CI10: 1 | CJ10: 2 | CL10: 2 | CM10: 2 | CP10: 2 | CQ10: 2 | CU10: 2 | CX10: 15 | DM10: 2 | DN10: 2 | DT10: 0 | DU10: 68
A11: 10 | B11: De Loor Pascal | E11: 2 | G11: 2 | H11: 4 | J11: 2 | K11: 2 | L11: 2 | M11: 2 | N11: 2 | O11: 2 | P11: 2 | R11: 14 | Z11: 1 | AA11: 2 | AB11: 2 | AD11: 1 | AE11: 2 | AF11: 2 | AG11: 3 | AH11: 1 | AI11: =SUM(S11:AH11) -> 14 | AJ11: 4 | AL11: 4 | AM11: 1 | AN11: 2 | AO11: 2 | AQ11: 2 | AR11: 2 | AS11: 2 | AT11: 1 | AU11: 2 | AW11: 4 | AX11: 1 | AY11: 4 | AZ11: 2 | BA11: 33 | BB11: 1 | BC11: 5 | BE11: 1 | BF11: 2 | BO11: 9 | BR11: 1 | BS11: 2 | BT11: 2 | BU11: 1 | BV11: 2 | BW11: 2 | BZ11: 2 | CB11: 2 | CC11: 2 | CF11: 16 | CK11: 2 | CL11: 4 | CM11: 2 | CO11: 1 | CP11: 2 | CQ11: 4 | CR11: 1 | CS11: 2 | CT11: 2 | CU11: 2 | CV11: 2 | CX11: 24 | CY11: 3 | CZ11: 2 | DA11: 1 | DC11: 2 | DE11: 1 | DG11: 2 | DI11: 2 | DJ11: 2 | DK11: 1 | DL11: 2 | DN11: 18 | DT11: 0 | DU11: 132
A12: 11 | B12: De Meyer Erwin | C12: 2 | D12: 2 | E12: 2 | F12: 2 | G12: 2 | H12: 10 | I12: 2 | L12: 2 | P12: 2 | Q12: 2 | R12: 8 | X12: 2 | Y12: 2 | AA12: 2 | AB12: 2 | AC12: 2 | AG12: 3 | AI12: 13 | AJ12: 2 | AK12: 2 | AN12: 2 | AU12: 2 | AW12: 2 | BA12: 10 | BC12: 5 | BD12: 2 | BF12: 2 | BH12: 2 | BO12: 11 | BW12: 2 | BX12: 2 | CB12: 2 | CE12: 2 | CF12: 8 | CG12: 2 | CH12: 2 | CJ12: 2 | CT12: 2 | CU12: 2 | CV12: 2 | CW12: 2 | CX12: 14 | CY12: 3 | CZ12: 4 | DD12: 2 | DJ12: 2 | DL12: 2 | DM12: 2 | DN12: 15 | DT12: 0 | DU12: 89
A13: 12 | B13: De Meyere Rudy | D13: 2 | E13: 2 | F13: 2 | G13: 2 | H13: 8 | I13: 2 | J13: 1 | K13: 2 | N13: 2 | O13: 2 | P13: 2 | Q13: 2 | R13: 13 | S13: 1 | T13: 2 | U13: 2 | V13: 2 | W13: 1 | X13: 2 | Y13: 2 | Z13: 1 | AA13: 2 | AB13: 2 | AD13: 1 | AE13: 2 | AF13: 2 | AG13: 3 | AH13: 1 | AI13: =SUM(S13:AH13) -> 26 | AJ13: 2 | AK13: 2 | AL13: 1 | AM13: 1 | AN13: 2 | AO13: 2 | AQ13: 2 | AR13: 2 | AS13: 2 | AT13: 1 | AU13: 2 | AV13: 2 | AW13: 4 | AX13: 1 | AY13: 2 | AZ13: 2 | BA13: 30 | BB13: 1 | BC13: 5 | BD13: 2 | BE13: 1 | BG13: 2 | BH13: 2 | BJ13: 2 | BK13: 2 | BL13: 1 | BM13: 2 | BN13: 2 | BO13: 22 | BP13: 2 | BR13: 1 | BS13: 2 | BT13: 2 | BU13: 1 | BV13: 2 | BW13: 2 | BX13: 2 | BZ13: 2 | CA13: 2 | CB13: 2 | CC13: 2 | CD13: 2 | CF13: 24 | CG13: 2 | CH13: 2 | CK13: 2 | CL13: 2 | CM13: 2 | CO13: 1 | CP13: 2 | CQ13: 2 | CR13: 1 | CS13: 2 | CT13: 2 | CU13: 2 | CV13: 2 | CW13: 2 | CX13: 26 | CY13: 3 | CZ13: 4 | DA13: 1 | DB13: 2 | DC13: 1 | DD13: 2 | DE13: 1 | DI13: 2 | DJ13: 2 | DK13: 1 | DL13: 2 | DM13: 2 | DN13: 23 | DT13: 0 | DU13: 172
A14: 13 | B14: De Roeck Christian | C14: 2 | D14: 2 | E14: 2 | G14: 2 | H14: 8 | I14: 2 | J14: 2 | L14: 2 | M14: 2 | N14: 2 | P14: 2 | R14: 12 | T14: 2 | V14: 2 | X14: 2 | AA14: 2 | AB14: 2 | AE14: 2 | AG14: 3 | AI14: 15 | AJ14: 4 | AM14: 1 | AQ14: 2 | AT14: 1 | AU14: 2 | AV14: 2 | AW14: 4 | BA14: 16 | BB14: 1 | BC14: 5 | BF14: 2 | BG14: 2 | BH14: 2 | BM14: 2 | BN14: 2 | BO14: 16 | BS14: 2 | BT14: 2 | BW14: 2 | CB14: 2 | CE14: 2 | CF14: 10 | CJ14: 2 | CU14: 2 | CV14: 2 | CW14: 4 | CX14: 10 | CY14: 3 | DB14: 2 | DC14: 2 | DD14: 2 | DK14: 1 | DL14: 2 | DM14: 2 | DN14: =SUM(CY14:DM14) -> 14 | DT14: =SUM(DO14:DS14) -> 0 | DU14: 101
A15: 14 | B15: De Smet Werner | C15: 2 | H15: 2 | L15: 2 | N15: 2 | R15: 4 | U15: 2 | V15: 2 | Y15: 2 | AG15: 3 | AI15: 9 | AK15: 2 | AR15: 2 | AV15: 1 | AZ15: 2 | BA15: 7 | BD15: 2 | BK15: 2 | BM15: 2 | BO15: 6 | BW15: 2 | CF15: 2 | CX15: 0 | DN15: 0 | DT15: 0 | DU15: 30
A16: 15 | B16: De Vos Samuel | C16: 2 | D16: 2 | E16: 2 | F16: 2 | G16: 2 | H16: 10 | I16: 2 | J16: 2 | K16: 2 | L16: 2 | M16: 2 | N16: 2 | O16: 4 | P16: 2 | Q16: 2 | R16: 20 | U16: 2 | V16: 2 | X16: 2 | Y16: 2 | AA16: 2 | AB16: 2 | AG16: 3 | AI16: 15 | AJ16: 4 | AK16: 2 | AL16: 4 | AN16: 2 | AO16: 2 | AQ16: 2 | AR16: 2 | AS16: 2 | AU16: 2 | AV16: 2 | AW16: 4 | AY16: 4 | AZ16: 2 | BA16: 34 | BC16: 5 | BD16: 2 | BG16: 2 | BH16: 2 | BJ16: 2 | BK16: 2 | BM16: 2 | BN16: 2 | BO16: 19 | BP16: 2 | BQ16: 2 | BS16: 2 | BT16: 2 | BV16: 2 | BW16: 2 | CA16: 2 | CB16: 2 | CF16: 16 | CG16: 2 | CH16: 4 | CJ16: 2 | CL16: 4 | CM16: 4 | CP16: 4 | CQ16: 4 | CS16: 2 | CT16: 2 | CU16: 2 | CV16: 2 | CW16: 4 | CX16: 36 | CY16: 3 | CZ16: 2 | DB16: 2 | DC16: 4 | DD16: 4 | DG16: 2 | DH16: 2 | DI16: 2 | DJ16: 2 | DL16: 2 | DM16: 2 | DN16: 27 | DT16: 0 | DU16: 177
A17: 16 | B17: De Vrieze Danny | H17: 0 | R17: 0 | AI17: 0 | BA17: 0 | BO17: 0 | CF17: 0 | CH17: 2 | CJ17: 2 | CX17: 4 | CY17: 3 | DD17: 2 | DN17: 5 | DT17: 0 | DU17: 9
A18: 17 | B18: De Waegenaere Gino | C18: 2 | D18: 2 | G18: 2 | H18: 6 | K18: 2 | M18: 2 | R18: 4 | T18: 2 | U18: 2 | V18: 2 | Y18: 2 | AA18: 2 | AG18: 3 | AI18: 13 | AJ18: 2 | AQ18: 2 | AS18: 2 | AV18: 2 | AW18: 2 | AZ18: 2 | BA18: 12 | BC18: 5 | BG18: 2 | BO18: 7 | BQ18: 2 | BW18: 2 | BY18: 2 | CB18: 2 | CE18: 2 | CF18: 10 | CG18: 2 | CH18: 2 | CM18: 2 | CU18: 2 | CW18: 2 | CX18: 10 | DN18: =SUM(CY18:DM18) -> 0 | DT18: =SUM(DO18:DS18) -> 0 | DU18: 62
A19: 18 | B19: Du Tranoix Freddy | C19: 2 | D19: 2 | F19: 2 | G19: 2 | H19: 8 | I19: 2 | J19: 2 | K19: 2 | N19: 4 | O19: 2 | P19: 2 | R19: 14 | T19: 2 | U19: 2 | V19: 2 | X19: 2 | Y19: 2 | AE19: 2 | AG19: 3 | AI19: 15 | AJ19: 2 | AK19: 2 | AL19: 2 | AN19: 2 | AO19: 2 | AQ19: 2 | AS19: 2 | AU19: 4 | AV19: 2 | AW19: 2 | AY19: 2 | AZ19: 2 | BA19: 26 | BJ19: 2 | BK19: 2 | BM19: 2 | BN19: 2 | BO19: 8 | BP19: 2 | BQ19: 2 | BV19: 2 | BW19: 2 | BX19: 2 | BY19: 2 | CA19: 2 | CE19: 2 | CF19: 16 | CG19: 2 | CH19: 2 | CJ19: 2 | CL19: 4 | CM19: 2 | CQ19: 2 | CT19: 2 | CV19: 2 | CW19: 2 | CX19: 20 | CY19: 3 | DB19: 2 | DC19: 2 | DD19: 2 | DF19: 1 | DG19: 2 | DI19: 2 | DJ19: 2 | DL19: 2 | DM19: 2 | DN19: 20 | DT19: 0 | DU19: 127
A20: 19 | B20: Ghijs Koen | H20: 0 | R20: 0 | AI20: 0 | BA20: 0 | BO20: 0 | CF20: 0 | CX20: 0 | DN20: 0 | DT20: 0 | DU20: 0
A21: 20 | B21: Koops Arie | C21: 2 | D21: 2 | E21: 2 | G21: 2 | H21: 8 | J21: 2 | K21: 2 | L21: 2 | N21: 2 | O21: 2 | P21: 2 | R21: 12 | S21: 1 | T21: 2 | V21: 2 | W21: 1 | X21: 2 | Z21: 1 | AA21: 2 | AD21: 1 | AE21: 2 | AH21: 1 | AI21: =SUM(S21:AH21) -> 15 | AJ21: 2 | AK21: 2 | AM21: 1 | AN21: 2 | AQ21: 2 | AR21: 2 | AS21: 2 | AT21: 1 | AU21: 2 | AW21: 4 | AX21: 1 | AY21: 2 | AZ21: 2 | BA21: 25 | BB21: 1 | BC21: 5 | BE21: 1 | BF21: 2 | BH21: 2 | BJ21: 2 | BL21: 1 | BM21: 2 | BO21: 16 | BP21: 2 | BV21: 2 | BX21: 2 | BZ21: 2 | CA21: 2 | CD21: 2 | CF21: 12 | CO21: 1 | CP21: 2 | CT21: 2 | CW21: 2 | CX21: 7 | DI21: 2 | DJ21: 2 | DL21: 2 | DM21: 2 | DN21: =SUM(CY21:DM21) -> 8 | DT21: =SUM(DO21:DS21) -> 0 | DU21: 103
A22: 21 | B22: Lauwaert Kris | H22: 0 | R22: 0 | AI22: 0 | AK22: 2 | AN22: 2 | AS22: 2 | AV22: 2 | AW22: 2 | AY22: 2 | BA22: 12 | BC22: 5 | BG22: 2 | BO22: 7 | BT22: 2 | CF22: 2 | CG22: 2 | CL22: 2 | CM22: 2 | CU22: 2 | CV22: 2 | CW22: 2 | CX22: 12 | DC22: 2 | DG22: 2 | DJ22: 2 | DL22: 2 | DN22: 8 | DT22: 0 | DU22: 41
A23: 22 | B23: Machtelings Eric | H23: 0 | R23: 0 | AI23: 0 | BA23: 0 | BO23: 0 | CF23: 0 | CX23: 0 | DN23: 0 | DT23: 0 | DU23: 0
A24: 23 | B24: Meuleneire Hans | H24: 0 | R24: 0 | AI24: 0 | BA24: 0 | BO24: 0 | CF24: 0 | CX24: 0 | CZ24: 2 | DN24: 2 | DT24: 0 | DU24: 2
A25: 24 | B25: Meulenijzer Kevin | H25: 0 | K25: 2 | R25: 2 | AI25: 0 | AK25: 2 | AN25: 2 | AV25: 2 | BA25: 6 | BC25: 5 | BG25: 2 | BO25: 7 | BT25: 2 | CF25: 2 | CV25: 2 | CX25: 2 | DG25: 2 | DN25: 2 | DT25: 0 | DU25: 21
A26: 25 | B26: Meulenijzer Roland | C26: 2 | D26: 2 | E26: 2 | F26: 2 | G26: 2 | H26: 10 | J26: 2 | K26: 2 | N26: 2 | Q26: 2 | R26: 8 | T26: 2 | V26: 2 | X26: 2 | AA26: 2 | AB26: 2 | AC26: 2 | AG26: 3 | AI26: 15 | AJ26: 2 | AL26: 2 | AN26: 2 | AO26: 2 | AQ26: 2 | AR26: 2 | AS26: 2 | AY26: 2 | AZ26: 2 | BA26: 18 | BC26: 5 | BD26: 2 | BF26: 2 | BG26: 2 | BH26: 2 | BK26: 2 | BM26: 2 | BN26: 2 | BO26: 19 | BP26: 2 | BQ26: 2 | BS26: 2 | BT26: 2 | BV26: 2 | BW26: 2 | BX26: 2 | BZ26: 2 | CE26: 2 | CF26: 18 | CG26: 2 | CH26: 2 | CJ26: 2 | CL26: 2 | CM26: 2 | CP26: 2 | CQ26: 2 | CR26: 1 | CS26: 2 | CT26: 2 | CU26: 2 | CV26: 2 | CW26: 2 | CX26: 25 | CY26: 3 | CZ26: 4 | DB26: 2 | DC26: 1 | DD26: 2 | DJ26: 2 | DM26: 2 | DN26: 16 | DT26: 0 | DU26: 129
A27: 26 | B27: Mincke Andy | D27: 2 | E27: 2 | F27: 2 | H27: 6 | J27: 2 | M27: 2 | N27: 2 | R27: 6 | T27: 2 | V27: 2 | Y27: 2 | AA27: 2 | AB27: 2 | AG27: 3 | AI27: 13 | AJ27: 2 | AK27: 2 | BA27: 4 | BO27: 0 | CF27: 0 | CX27: 0 | DN27: =SUM(CY27:DM27) -> 0 | DT27: =SUM(DO27:DS27) -> 0 | DU27: 29
A28: 27 | B28: Rokegem Guy | H28: 0 | L28: 2 | N28: 2 | R28: 4 | U28: 2 | V28: 2 | Y28: 2 | AG28: 3 | AI28: 9 | AK28: 2 | AQ28: 2 | AR28: 2 | AV28: 1 | AZ28: 2 | BA28: 9 | BJ28: 2 | BO28: 2 | BQ28: 2 | BT28: 2 | BW28: 2 | BY28: 2 | CF28: 8 | CM28: 2 | CX28: 2 | DN28: 0 | DT28: 0 | DU28: 34
A29: 28 | B29: Schietecatte Bastiaan | H29: 0 | R29: 0 | AI29: 0 | BA29: 0 | BO29: 0 | CF29: 0 | CX29: 0 | DN29: 0 | DT29: 0 | DU29: 0
A30: 29 | B30: Slagmeulder Chris | C30: 2 | D30: 2 | E30: 2 | G30: 2 | H30: 8 | J30: 2 | K30: 2 | L30: 2 | M30: 2 | N30: 2 | O30: 2 | R30: 12 | Y30: 2 | AA30: 2 | AB30: 2 | AE30: 2 | AG30: 3 | AI30: 11 | AJ30: 2 | AK30: 2 | AN30: 2 | AO30: 2 | AQ30: 2 | AS30: 2 | AY30: 2 | BA30: 14 | BD30: 2 | BG30: 2 | BH30: 2 | BJ30: 2 | BK30: 2 | BN30: 2 | BO30: 12 | BP30: 2 | BQ30: 2 | BS30: 2 | BT30: 2 | BW30: 2 | BX30: 2 | CF30: 12 | CG30: 2 | CH30: 2 | CJ30: 2 | CL30: 2 | CQ30: 2 | CT30: 2 | CX30: 12 | CY30: 3 | DB30: 2 | DG30: 2 | DN30: 7 | DT30: 0 | DU30: 88
A31: 30 | B31: Thijs Bruno | H31: 0 | R31: 0 | AI31: 0 | BA31: 0 | BO31: 0 | CF31: 0 | CX31: 0 | DN31: =SUM(CY31:DM31) -> 0 | DT31: =SUM(DO31:DS31) -> 0 | DU31: 0
A32: 31 | B32: Thijs Eric | H32: 0 | R32: 0 | AI32: 0 | BA32: 0 | BO32: 0 | CF32: 0 | CX32: 0 | DN32: 0 | DT32: 0 | DU32: 0
A33: 32 | B33: Thijs José | H33: 0 | R33: 0 | AI33: 0 | BA33: 0 | BE33: 1 | BO33: 1 | CF33: 0 | CX33: 0 | DN33: 0 | DT33: 0 | DU33: 1
A34: =A33+1 -> 33 | B34: Van Bockstaele Eddy | H34: 0 | P34: 2 | R34: 2 | AG34: 3 | AI34: 3 | AJ34: 2 | AK34: 2 | AQ34: 2 | AR34: 2 | AS34: 2 | BA34: =SUM(AJ34:AZ34) -> 10 | BF34: 2 | BG34: 2 | BH34: 2 | BJ34: 2 | BN34: 2 | BO34: =SUM(BB34:BN34) -> 10 | BS34: 2 | BT34: 2 | BV34: 2 | BW34: 2 | BX34: 2 | BY34: 2 | CE34: 2 | CF34: =SUM(BP34:CE34) -> 14 | CG34: 2 | CH34: 2 | CJ34: 2 | CL34: 2 | CM34: 2 | CS34: 2 | CT34: 2 | CU34: 2 | CV34: 2 | CW34: 2 | CX34: =SUM(CG34:CW34) -> 20 | DD34: 2 | DL34: 2 | DN34: 4 | DT34: 0 | DU34: =H34+R34+AI34+BA34+BO34+CF34+CX34+DN34+DT34 -> 63
A35: 34 | B35: Van Caenegem Geert | D35: 2 | H35: 2 | I35: 2 | R35: 2 | U35: 2 | V35: 2 | AB35: 2 | AG35: 3 | AI35: 9 | AJ35: 2 | AL35: 2 | AV35: 2 | AW35: 2 | BA35: 8 | BC35: 5 | BD35: 2 | BG35: 2 | BH35: 2 | BO35: 11 | BS35: 2 | BW35: 2 | BZ35: 2 | CB35: 2 | CF35: 8 | CG35: 2 | CH35: 2 | CL35: 2 | CT35: 2 | CW35: 4 | CX35: 12 | CY35: 3 | DC35: 2 | DJ35: 2 | DM35: 2 | DN35: 9 | DT35: 0 | DU35: 61
A36: 35 | B36: Van Cleemputte Jurgen | C36: 2 | H36: 2 | J36: 2 | L36: 2 | N36: 2 | R36: 6 | U36: 2 | V36: 2 | Y36: 2 | AG36: 3 | AI36: 9 | AK36: 2 | AQ36: 2 | AR36: 2 | AV36: 1 | AZ36: 2 | BA36: 9 | BC36: 2 | BD36: 2 | BJ36: 2 | BK36: 2 | BM36: 2 | BO36: 10 | BW36: 2 | BY36: 2 | CF36: 4 | CM36: 2 | CX36: 2 | DN36: 0 | DT36: 0 | DU36: 42
A37: 36 | B37: Van De Maele Etienne | C37: 2 | D37: 2 | H37: 4 | R37: 0 | V37: 2 | W37: 1 | Y37: 2 | Z37: 1 | AA37: 2 | AD37: 1 | AG37: 3 | AH37: 1 | AI37: =SUM(S37:AH37) -> 13 | AJ37: 2 | AM37: 1 | AS37: 2 | AT37: 1 | AX37: 1 | AZ37: 2 | BA37: 9 | BB37: 1 | BE37: 1 | BF37: 2 | BH37: 2 | BL37: 1 | BO37: 7 | BP37: 2 | BQ37: 2 | BR37: 1 | BS37: 2 | BT37: 2 | BU37: 1 | BW37: 2 | BZ37: 2 | CA37: 2 | CB37: 2 | CD37: 2 | CF37: 20 | CH37: 2 | CK37: 2 | CL37: 2 | CM37: 2 | CO37: 1 | CX37: 9 | CY37: 3 | DA37: 1 | DC37: 2 | DD37: 2 | DE37: 1 | DK37: 1 | DN37: 10 | DT37: 0 | DU37: 72
A38: 37 | B38: Van De Maele Geert | C38: 2 | D38: 2 | F38: 2 | G38: 2 | H38: 8 | I38: 2 | K38: 2 | O38: 2 | R38: 6 | U38: 2 | V38: 2 | X38: 2 | Y38: 2 | AA38: 2 | AI38: 10 | AK38: 2 | AQ38: 2 | AR38: 2 | AV38: 2 | AW38: 2 | AZ38: 2 | BA38: 12 | BC38: 5 | BG38: 2 | BN38: 2 | BO38: 9 | BQ38: 2 | BW38: 2 | CB38: 2 | CF38: 6 | CG38: 2 | CH38: 2 | CT38: 2 | CU38: 2 | CX38: 8 | DN38: 0 | DT38: 0 | DU38: 59
A39: 38 | B39: Van De Maele Stefan | G39: 2 | H39: 2 | R39: 0 | AI39: 0 | BA39: 0 | BO39: 0 | CF39: 0 | CX39: 0 | DN39: 0 | DT39: 0 | DU39: 2
A40: 39 | B40: Van de Velde Herman | C40: 2 | F40: 2 | G40: 2 | H40: 6 | K40: 2 | M40: 2 | O40: 2 | R40: 6 | U40: 2 | V40: 2 | Y40: 2 | AA40: 2 | AG40: 3 | AI40: 11 | AJ40: 2 | AK40: 2 | AO40: 2 | AQ40: 2 | AS40: 2 | AV40: 2 | AW40: 2 | AZ40: 2 | BA40: 16 | BC40: 5 | BD40: 2 | BF40: 2 | BH40: 2 | BK40: 2 | BN40: 2 | BO40: 15 | BQ40: 2 | BS40: 2 | BW40: 2 | BY40: 2 | CB40: 2 | CF40: 10 | CH40: 2 | CJ40: 2 | CM40: 2 | CQ40: 2 | CS40: 2 | CT40: 2 | CU40: 2 | CV40: 2 | CX40: 16 | CY40: 3 | DC40: 2 | DG40: 2 | DI40: 2 | DL40: 2 | DN40: 11 | DT40: 0 | DU40: 91
A41: 40 | B41: Van de Velde Ivan | C41: 2 | F41: 2 | G41: 2 | H41: 6 | I41: 2 | J41: 2 | K41: 2 | L41: 2 | M41: 2 | N41: 2 | O41: 2 | P41: 2 | R41: 16 | T41: 2 | U41: 2 | X41: 2 | Y41: 2 | AA41: 2 | AE41: 2 | AG41: 3 | AI41: 15 | AJ41: 2 | AK41: 2 | AN41: 2 | AO41: 2 | AQ41: 2 | AR41: 2 | AS41: 2 | AY41: 2 | AZ41: 2 | BA41: 18 | BC41: 5 | BD41: 2 | BG41: 2 | BH41: 2 | BO41: 11 | BP41: 2 | BV41: 2 | BW41: 2 | BX41: 2 | CB41: 2 | CE41: 2 | CF41: 12 | CX41: 0 | DN41: 0 | DT41: 0 | DU41: 78
A42: 41 | B42: Van de Velde Jarno | H42: 0 | R42: 0 | AI42: 0 | BA42: 0 | BO42: 0 | CF42: 0 | CL42: 2 | CX42: 2 | DN42: 0 | DT42: 0 | DU42: 2
A43: 42 | B43: Van De Velde Jens | H43: 0 | R43: 0 | AI43: 0 | BA43: 0 | BO43: 0 | CF43: 0 | CX43: 0 | DN43: =SUM(CY43:DM43) -> 0 | DT43: =SUM(DO43:DS43) -> 0 | DU43: 0
A44: 43 | B44: Van Der Gucht Bas | H44: 0 | R44: 0 | AI44: 0 | BA44: 0 | BO44: 0 | CF44: 0 | CX44: 0 | DN44: 0 | DT44: 0 | DU44: 0
A45: 44 | B45: Van Der Gucht Clo | C45: 2 | D45: 2 | E45: 2 | F45: 2 | G45: 2 | H45: 10 | I45: 2 | J45: 2 | K45: 2 | N45: 2 | O45: 2 | P45: 2 | Q45: 2 | R45: 14 | T45: 2 | U45: 2 | V45: 2 | Z45: 1 | AA45: 2 | AB45: 2 | AC45: 2 | AF45: 2 | AG45: 3 | AI45: 18 | AU45: 2 | AV45: 2 | AW45: 4 | AY45: 2 | BA45: 10 | BC45: 5 | BD45: 2 | BF45: 2 | BG45: 2 | BH45: 2 | BK45: 2 | BN45: 2 | BO45: 17 | BP45: 2 | BQ45: 2 | CF45: 4 | CG45: 2 | CH45: 4 | CL45: 2 | CM45: 2 | CP45: 2 | CQ45: 2 | CV45: 2 | CW45: 4 | CX45: 20 | CY45: 3 | CZ45: 4 | DB45: 2 | DC45: 2 | DG45: 2 | DL45: 2 | DM45: 2 | DN45: 17 | DT45: 0 | DU45: 110
A46: 45 | B46: Van Der Gucht Sam | H46: 0 | R46: 0 | AI46: 0 | BA46: 0 | BO46: 0 | CF46: 0 | CX46: 0 | DN46: 0 | DT46: 0 | DU46: 0
A47: 46 | B47: Van Elsuwege Robin | H47: 0 | K47: 2 | O47: 2 | R47: 4 | AI47: 0 | AJ47: 2 | AQ47: 2 | AS47: 2 | AZ47: 2 | BA47: 8 | BG47: 2 | BK47: 2 | BO47: 4 | CB47: 2 | CF47: 2 | CM47: 2 | CP47: 2 | CX47: 4 | DN47: =SUM(CY47:DM47) -> 0 | DT47: =SUM(DO47:DS47) -> 0 | DU47: 22
A48: 47 | B48: Van Gansbeke Robin | H48: 0 | K48: 2 | O48: 2 | R48: 4 | AI48: 0 | AS48: 2 | AZ48: 2 | BA48: 4 | BO48: 0 | BQ48: 2 | CB48: 2 | CF48: 4 | CG48: 2 | CJ48: 2 | CM48: 2 | CP48: 2 | CX48: 8 | DN48: =SUM(CY48:DM48) -> 0 | DT48: =SUM(DO48:DS48) -> 0 | DU48: 20
A49: 48 | B49: Van Lierde Ronny | H49: 0 | R49: 0 | X49: 2 | AA49: 2 | AI49: 4 | AJ49: 2 | AK49: 2 | BA49: 4 | BC49: 5 | BF49: 2 | BO49: 7 | BS49: 2 | CF49: 2 | CG49: 2 | CJ49: 2 | CL49: 2 | CX49: 6 | DB49: 2 | DM49: 2 | DN49: 4 | DT49: 0 | DU49: 27
A50: 49 | B50: Van Waeyenberge Clebert | C50: 2 | D50: 2 | E50: 2 | F50: 2 | G50: 2 | H50: 10 | I50: 2 | J50: 3 | K50: 2 | L50: 2 | M50: 2 | N50: 2 | O50: 2 | P50: 2 | R50: 17 | T50: 2 | U50: 2 | W50: 1 | X50: 2 | Y50: 2 | Z50: 1 | AA50: 2 | AB50: 2 | AD50: 1 | AE50: 2 | AG50: 3 | AH50: 1 | AI50: =SUM(S50:AH50) -> 21 | AJ50: 2 | AK50: 2 | AL50: 2 | AM50: 1 | AN50: 2 | AO50: 2 | AP50: 1 | AR50: 1 | AS50: 2 | AT50: 1 | AU50: 2 | AV50: 2 | AW50: 4 | AX50: 1 | AZ50: 2 | BA50: 27 | BB50: 1 | BC50: 5 | BD50: 2 | BE50: 1 | BF50: 2 | BG50: 2 | BJ50: 2 | BK50: 2 | BL50: 1 | BM50: 2 | BN50: 2 | BO50: 22 | BQ50: 2 | BR50: 1 | BS50: 2 | BT50: 2 | BU50: 1 | CD50: 2 | CF50: 10 | CG50: 4 | CH50: 2 | CK50: 2 | CL50: 4 | CM50: 2 | CO50: 1 | CP50: 4 | CQ50: 2 | CR50: 1 | CT50: 2 | CU50: 2 | CV50: 2 | CW50: 4 | CX50: 32 | CY50: 3 | DA50: 1 | DB50: 2 | DC50: 2 | DE50: 1 | DF50: 1 | DJ50: 2 | DK50: 1 | DL50: 2 | DM50: 2 | DN50: 17 | DT50: 0 | DU50: 156
C51: =COUNT(C2:C50) -> 18 | D51: =COUNT(D2:D50) -> 17 | E51: =COUNT(E2:E50) -> 13 | F51: =COUNT(F2:F50) -> 12 | G51: =COUNT(G2:G50) -> 17 | H51: =COUNTIFS(H2:H50,">0") -> 25 | I51: =COUNT(I2:I50) -> 12 | J51: 15 | K51: 21 | L51: 12 | M51: 10 | N51: 16 | O51: 14 | P51: 11 | Q51: 5 | R51: =COUNTIFS(R2:R50,">0") -> 30 | S51: =COUNT(S2:S50) -> 2 | T51: 10 | U51: 13 | V51: 17 | W51: 4 | X51: 13 | Y51: 18 | Z51: 6 | AA51: 19 | AB51: 13 | AC51: 3 | AD51: 5 | AE51: 8 | AF51: 3 | AG51: 23 | AH51: 5 | AI51: =COUNTIFS(AI2:AI50,">0") -> 29 | AJ51: =COUNT(AJ2:AJ50) -> 21 | AK51: 21 | AL51: 7 | AM51: 6 | AN51: 14 | AO51: 12 | AP51: 1 | AQ51: 19 | AR51: 15 | AS51: 17 | AT51: 7 | AU51: 11 | AV51: 17 | AW51: 15 | AX51: =COUNT(AX2:AX50) -> 5 | AY51: 12 | AZ51: 19 | BA51: =COUNTIFS(BA2:BA50,">0") -> 33 | BB51: =COUNT(BB2:BB50) -> 6 | BC51: 22 | BD51: 15 | BE51: 6 | BF51: 11 | BG51: 18 | BH51: 15 | BI51: 0 | BJ51: 9 | BK51: 14 | BL51: 4 | BM51: 9 | BN51: 11 | BO51: =COUNTIFS(BO2:BO50,">0") -> 30 | BP51: =COUNT(BP2:BP50) -> 10 | BQ51: 13 | BR51: 4 | BS51: 14 | BT51: 14 | BU51: 4 | BV51: 10 | BW51: 20 | BX51: 10 | BY51: 8 | BZ51: 6 | CA51: 6 | CB51: 16 | CC51: 2 | CD51: 4 | CE51: 9 | CF51: =COUNTIFS(CF2:CF50,">0") -> 30 | CG51: =COUNT(CG2:CG50) -> 19 | CH51: 17 | CI51: 1 | CJ51: 12 | CK51: 4 | CL51: 16 | CM51: 17 | CN51: 0 | CO51: 5 | CP51: 12 | CQ51: 12 | CR51: 4 | CS51: 6 | CT51: 15 | CU51: 15 | CV51: 14 | CW51: 14 | CX51: =COUNTIFS(CX2:CX50,">0") -> 30 | CY51: =COUNT(CY2:CY50) -> 15 | CZ51: =COUNT(CZ2:CZ50) -> 7 | DA51: =COUNT(DA2:DA50) -> 4 | DB51: 9 | DC51: 12 | DD51: 10 | DE51: 4 | DF51: 2 | DG51: 9 | DH51: 1 | DI51: 7 | DJ51: 12 | DK51: 5 | DL51: 14 | DM51: 14 | DN51: =COUNTIFS(DN2:DN50,">0") -> 23 | DO51: =COUNT(DO2:DO50) -> 0 | DP51: =COUNT(DP2:DP50) -> 0 | DQ51: =COUNT(DQ2:DQ50) -> 0 | DR51: =COUNT(DR2:DR50) -> 0 | DS51: =COUNT(DS2:DS50) -> 0 | DT51: =COUNTIFS(DT2:DT50,">0") -> 0 | DU51: =COUNTIFS(DU2:DU50,">0") -> 40

Sheet Heren - Kms
B1: 2015 HEREN - Kms | C1: 2015-02-14 | D1: 2015-02-15 | E1: 2015-02-21 | F1: 2015-02-22 | G1: 2015-02-28 | H1: Februari | I1: 2015-03-01 | J1: 2015-03-07 | K1: 2015-03-08 | L1: 2015-03-14 | M1: 2015-03-15 | N1: 2015-03-21 | O1: 2015-03-22 | P1: 2015-03-28 | Q1: 2015-03-29 | R1: Maart | S1: 2015-04-02 | T1: 2015-04-04 | U1: 2015-04-05 | V1: 2015-04-06 | W1: 2015-04-09 | X1: 2015-04-11 | Y1: 2015-04-12 | Z1: 2015-04-16 | AA1: 2015-04-18 | AB1: 2015-04-19 | AC1: 2015-04-23 | AD1: 2015-04-25 | AE1: 2015-04-26 | AF1: 2015-04-30 | AG1: April | AH1: 2015-05-01 | AI1: 2015-05-02 | AJ1: 2015-05-03 | AK1: 2015-05-07 | AL1: 2015-05-09 | AM1: 2015-05-10 | AN1: 2015-05-12 | AO1: 2015-05-14 | AP1: 2015-05-16 | AQ1: 2015-05-17 | AR1: 2015-05-21 | AS1: 2015-05-23 | AT1: 2015-05-24 | AU1: 2015-05-25 | AV1: 2015-05-28 | AW1: 2015-05-30 | AX1: 2015-05-31 | AY1: Mei | AZ1: 2015-06-04 | BA1: 2015-06-06 | BB1: 2015-06-07 | BC1: 2015-06-11 | BD1: 2015-06-13 | BE1: 2015-06-14 | BF1: 2015-06-18 | BG1: 2015-06-20 | BH1: 2015-06-21 | BI1: 2015-06-25 | BJ1: 2015-06-27 | BK1: 2015-06-28 | BL1: Juni | BM1: 2015-07-04 | BN1: 2015-07-05 | BO1: 2015-07-09 | BP1: 2015-07-11 | BQ1: 2015-07-12 | BR1: 2015-07-16 | BS1: 2015-07-18 | BT1: 2015-07-19 | BU1: 2015-07-21 | BV1: 2015-07-23 | BW1: 2015-07-23 | BX1: 2015-07-25 | BY1: 2015-07-26 | BZ1: 27&28/07/2015 | CA1: 2015-07-30 | CB1: 2015-07-30 | CC1: Juli | CD1: 2015-08-01 | CE1: 2015-08-02 | CF1: 2015-08-05 | CG1: 2015-08-06 | CH1: 2015-08-06 | CI1: 2015-08-08 | CJ1: 2015-08-09 | CK1: 2015-08-13 | CL1: 2015-08-13 | CM1: 2015-08-15 | CN1: 2015-08-16 | CO1: 2015-08-20 | CP1: 2015-08-21 | CQ1: 2015-08-22 | CR1: 2015-08-23 | CS1: 2015-08-29 | CT1: 2015-08-30 | CU1: Augustus | CV1: 2015-09-02 | CW1: 2015-09-03 | CX1: 2015-09-05 | CY1: 2015-09-06 | CZ1: 2015-09-09 | DA1: 2015-09-10 | DB1: 2015-09-12 | DC1: 2015-09-13 | DD1: 2015-09-18 | DE1: 2015-09-19 | DF1: 2015-09-20 | DG1: 2015-09-24 | DH1: 2015-09-26 | DI1: 2015-09-27 | DJ1: September | DK1: 561-BRUGGENROUTE | DL1: 513 - HEIRNISROUTE | DM1: 523 - PARKINGROUTE | DN1: 512 - HEIRNISROUTE 1 | DO1: 524 - AMALRIKROUTE | DP1: Permanenten | DQ1: EINDSTAND
A2: 1 | B2: Anseau Stefan | H2: =SUM(C2:F2) -> 0 | R2: =SUM(I2:Q2) -> 0 | AG2: =SUM(S2:AE2) -> 0 | AY2: =SUM(AH2:AX2) -> 0 | BL2: =SUM(AZ2:BK2) -> 0 | CC2: =SUM(BM2:CB2) -> 0 | CU2: =SUM(CD2:CT2) -> 0 | DJ2: =SUM(CV2:DI2) -> 0 | DP2: =SUM(DK2:DO2) -> 0 | DQ2: =H2+R2+AG2+AY2+BL2+CC2+CU2+DJ2+DP2 -> 0
A3: =A2+1 -> 2 | B3: Baekelandt James | F3: 35 | H3: 35 | K3: 50 | R3: 50 | Y3: 80 | AG3: 80 | AL3: 75 | AY3: 75 | BL3: 0 | CC3: 0 | CU3: 0 | DJ3: 0 | DP3: 0 | DQ3: 240
A4: =A3+1 -> 3 | B4: Baeyens Hendrik | H4: 0 | K4: 60 | R4: 60 | AE4: 40 | AG4: 40 | AJ4: 50 | AM4: 60 | AP4: 85 | AT4: 62 | AY4: 257 | BL4: 0 | CC4: 0 | CU4: 0 | DJ4: 0 | DP4: 0 | DQ4: 357
A5: 4 | B5: Broekaert Philip | C5: 50 | D5: 40 | E5: 40 | G5: 50 | H5: =SUM(C5:G5) -> 180 | I5: 40 | J5: 50 | K5: 60 | L5: 75 | M5: 40 | R5: 265 | V5: 105 | X5: 200 | Y5: 80 | AA5: 105 | AB5: 50 | AE5: 65 | AG5: 605 | AH5: 80 | AM5: 60 | AO5: 105 | AP5: 105 | AR5: 30 | AS5: 110 | AT5: 80 | AU5: 90 | AY5: 660 | BA5: 30 | BB5: 75 | BE5: 40 | BH5: 60 | BL5: 205 | BP5: 60 | BQ5: 75 | BS5: 70 | BT5: 70 | BY5: 60 | CC5: 335 | CD5: 75 | CE5: 75 | CI5: 75 | CM5: 70 | CN5: 60 | CR5: 50 | CU5: 405 | DE5: 40 | DF5: 35 | DH5: 75 | DI5: 50 | DJ5: 200 | DP5: 0 | DQ5: 2855
A6: 5 | B6: Cantaert Steven | H6: =SUM(C6:G6) -> 0 | R6: 0 | AE6: 65 | AG6: 65 | AY6: 0 | BL6: 0 | CC6: 0 | CU6: 0 | DJ6: 0 | DP6: 0 | DQ6: 65
A7: 6 | B7: Daneels Pieter | C7: 50 | H7: 50 | R7: 0 | AG7: 0 | AI7: 75 | AY7: 75 | BL7: 0 | CC7: 0 | CU7: 0 | DJ7: =SUM(CV7:DI7) -> 0 | DP7: =SUM(DK7:DO7) -> 0 | DQ7: 125
A8: 7 | B8: De Geyter Victor | H8: 0 | N8: 75 | R8: 75 | AB8: 50 | AG8: 50 | AH8: 80 | AI8: 75 | AO8: 65 | AP8: 25 | AS8: 40 | AW8: 25 | AX8: 40 | AY8: 350 | BA8: 30 | BB8: 25 | BE8: 40 | BH8: 35 | BL8: 130 | BM8: 40 | BN8: 30 | BP8: 60 | BQ8: 45 | BU8: 30 | BV8: 37 | CB8: 50 | CC8: 292 | CD8: 25 | CE8: 25 | CM8: 70 | CN8: 40 | CQ8: 25 | CR8: 30 | CS8: 40 | CT8: 52 | CU8: 307 | CV8: 50 | CZ8: 25 | DC8: 55 | DF8: 70 | DH8: 75 | DI8: 50 | DJ8: 325 | DP8: 0 | DQ8: 1529
A9: 8 | B9: De Groote Dimitri | H9: 0 | K9: 60 | O9: 144 | R9: 204 | AG9: 0 | AY9: 0 | BA9: 30 | BE9: 40 | BL9: 70 | BY9: 60 | CC9: 60 | CD9: 75 | CQ9: 75 | CU9: 150 | DJ9: 0 | DP9: 0 | DQ9: 484
A10: 9 | B10: De Guisme Christiaan | D10: 40 | E10: 40 | H10: 80 | I10: 40 | J10: 50 | K10: 40 | R10: 130 | X10: 40 | Y10: 35 | AA10: 40 | AG10: 115 | AL10: 50 | AM10: 50 | AO10: 40 | AQ10: 40 | AW10: 25 | AX10: 40 | AY10: 245 | BA10: 30 | BB10: 25 | BH10: 35 | BL10: 90 | BS10: 40 | BT10: 45 | BU10: 85 | BV10: 55 | BX10: 35 | BY10: 40 | CB10: 50 | CC10: 350 | CD10: 50 | CF10: 50 | CG10: 54 | CI10: 50 | CJ10: 40 | CM10: 70 | CN10: 60 | CR10: 30 | CU10: 404 | DI10: 50 | DJ10: 50 | DP10: 0 | DQ10: 1464
A11: 10 | B11: De Loor Pascal | E11: 40 | G11: 50 | H11: 90 | J11: 50 | K11: 60 | L11: 75 | M11: 40 | N11: 100 | O11: 50 | P11: 150 | R11: 525 | Z11: 30 | AA11: 40 | AB11: 50 | AC11: 30 | AD11: 70 | AE11: 65 | AF11: 30 | AG11: =SUM(S11:AF11) -> 315 | AH11: 80 | AJ11: 75 | AK11: 30 | AL11: 105 | AM11: 60 | AO11: 105 | AP11: 105 | AQ11: 60 | AR11: 30 | AS11: 110 | AU11: 90 | AV11: 30 | AW11: 77 | AX11: 40 | AY11: 997 | AZ11: 30 | BA11: 30 | BC11: 30 | BD11: 40 | BL11: 130 | BO11: 30 | BP11: 60 | BQ11: 75 | BR11: 30 | BS11: 70 | BT11: 70 | BW11: 40 | BY11: 60 | BZ11: 225 | CC11: 660 | CH11: 30 | CI11: 75 | CJ11: 60 | CL11: 30 | CM11: 70 | CN11: 100 | CO11: 30 | CP11: 65 | CQ11: 85 | CR11: 75 | CS11: 150 | CU11: 770 | CV11: 50 | CW11: 30 | CY11: 45 | DA11: 30 | DC11: 75 | DE11: 40 | DF11: 35 | DG11: 30 | DH11: 75 | DJ11: 410 | DP11: 0 | DQ11: 3897
A12: 11 | B12: De Meyer Erwin | C12: 50 | D12: 40 | E12: 40 | F12: 50 | G12: 50 | H12: 230 | I12: 40 | L12: 75 | P12: 65 | Q12: 60 | R12: 240 | X12: 40 | Y12: 80 | AA12: 40 | AB12: 50 | AE12: 65 | AG12: 275 | AH12: 50 | AI12: 50 | AL12: 75 | AS12: 40 | AU12: 40 | AY12: 255 | BA12: 30 | BB12: 50 | BD12: 40 | BL12: 120 | BT12: 45 | BU12: 85 | BY12: 40 | CB12: 50 | CC12: 220 | CD12: 75 | CE12: 60 | CG12: 54 | CQ12: 75 | CR12: 50 | CS12: 150 | CT12: 60 | CU12: 524 | CV12: 50 | CZ12: 50 | DF12: 75 | DH12: 75 | DI12: 50 | DJ12: 300 | DP12: 0 | DQ12: 2164
A13: 12 | B13: De Meyere Rudy | D13: 40 | E13: 40 | F13: 50 | G13: 50 | H13: 180 | I13: 60 | J13: 80 | K13: 60 | N13: 75 | O13: 115 | P13: 150 | Q13: 60 | R13: 600 | S13: 30 | T13: 120 | U13: 60 | V13: 105 | W13: 30 | X13: 100 | Y13: 80 | Z13: 30 | AA13: 65 | AB13: 50 | AC13: 30 | AD13: 145 | AE13: 65 | AF13: 30 | AG13: =SUM(S13:AF13) -> 940 | AH13: 50 | AI13: 140 | AJ13: 80 | AK13: 30 | AL13: 105 | AM13: 60 | AO13: 105 | AP13: 105 | AQ13: 60 | AR13: 30 | AS13: 110 | AT13: 80 | AU13: 90 | AV13: 30 | AW13: 104 | AX13: 115 | AY13: 1294 | AZ13: 30 | BA13: 30 | BB13: 75 | BC13: 30 | BD13: 150 | BE13: 40 | BG13: 90 | BH13: 60 | BI13: 30 | BJ13: 90 | BK13: 120 | BL13: 745 | BM13: 180 | BO13: 30 | BP13: 60 | BQ13: 75 | BR13: 30 | BS13: 70 | BT13: 70 | BU13: 110 | BW13: 40 | BX13: 60 | BY13: 60 | BZ13: 225 | CA13: 30 | CC13: 1040 | CD13: 105 | CE13: 60 | CH13: 30 | CI13: 105 | CJ13: 60 | CL13: 30 | CM13: 105 | CN13: 60 | CO13: 30 | CP13: 65 | CQ13: 85 | CR13: 75 | CS13: 150 | CT13: 60 | CU13: 1020 | CV13: 50 | CW13: 30 | CX13: 105 | CY13: 85 | CZ13: 50 | DA13: 30 | DE13: 60 | DF13: 75 | DG13: 30 | DH13: 75 | DI13: 50 | DJ13: 640 | DP13: 0 | DQ13: 6459
A14: 13 | B14: De Roeck Christian | C14: 50 | D14: 40 | E14: 40 | G14: 50 | H14: 180 | I14: 40 | J14: 50 | L14: 75 | M14: 40 | N14: 100 | P14: 150 | R14: 455 | T14: 70 | V14: 105 | X14: 60 | AA14: 105 | AB14: 50 | AD14: 70 | AE14: 65 | AG14: 525 | AH14: 80 | AK14: 30 | AO14: 105 | AR14: 30 | AS14: 110 | AT14: 80 | AU14: 90 | AY14: 525 | AZ14: 30 | BA14: 30 | BD14: 40 | BE14: 40 | BJ14: 90 | BK14: 120 | BL14: 350 | BP14: 60 | BQ14: 75 | BT14: 70 | BY14: 60 | CB14: 50 | CC14: 315 | CG14: 54 | CR14: 50 | CS14: 150 | CT14: 85 | CU14: 339 | CV14: 50 | CX14: 80 | CY14: 45 | CZ14: 50 | DG14: 30 | DH14: 75 | DI14: 50 | DJ14: =SUM(CV14:DI14) -> 380 | DP14: =SUM(DK14:DO14) -> 0 | DQ14: 3069
A15: 14 | B15: De Smet Werner | C15: 50 | H15: 50 | L15: 75 | N15: 75 | R15: 150 | U15: 60 | V15: 70 | Y15: 60 | AE15: 65 | AG15: 255 | AI15: 75 | AP15: 85 | AT15: 88 | AX15: 85 | AY15: 333 | BB15: 75 | BH15: 60 | BJ15: 90 | BL15: 225 | BT15: 70 | CC15: 70 | CU15: 0 | DJ15: 0 | DP15: 0 | DQ15: 1083
A16: 15 | B16: De Vos Samuel | C16: 50 | D16: 40 | E16: 40 | F16: 50 | G16: 50 | H16: 230 | I16: 60 | J16: 50 | K16: 60 | L16: 75 | M16: 40 | N16: 100 | O16: 75 | P16: 150 | Q16: 60 | R16: 670 | U16: 60 | V16: 105 | X16: 200 | Y16: 80 | AA16: 105 | AB16: 50 | AE16: 65 | AG16: 665 | AH16: 80 | AI16: 140 | AJ16: 75 | AL16: 105 | AM16: 60 | AO16: 105 | AP16: 105 | AQ16: 40 | AS16: 110 | AT16: 80 | AU16: 90 | AW16: 77 | AX16: 115 | AY16: 1182 | BA16: 30 | BB16: 50 | BD16: 150 | BE16: 40 | BG16: 90 | BH16: 60 | BJ16: 90 | BK16: 120 | BL16: 630 | BM16: 180 | BN16: 60 | BP16: 60 | BQ16: 75 | BS16: 70 | BT16: 70 | BX16: 60 | BY16: 60 | CC16: 635 | CD16: 75 | CE16: 75 | CG16: 54 | CI16: 75 | CJ16: 90 | CM16: 175 | CN16: 100 | CP16: 65 | CQ16: 85 | CR16: 75 | CS16: 150 | CT16: 85 | CU16: 1104 | CV16: 50 | CX16: 80 | CY16: 70 | CZ16: 85 | DC16: 75 | DD16: 40 | DE16: 40 | DF16: 35 | DH16: 75 | DI16: 50 | DJ16: 600 | DP16: 0 | DQ16: 5716
A17: 16 | B17: De Vrieze Danny | H17: 0 | R17: 0 | AG17: 0 | AY17: 0 | BL17: 0 | CC17: 0 | CE17: 50 | CG17: 54 | CU17: 104 | CV17: 50 | CZ17: 50 | DJ17: 100 | DP17: 0 | DQ17: 204
A18: 17 | B18: De Waegenaere Gino | C18: 50 | D18: 40 | G18: 50 | H18: 140 | K18: 60 | M18: 75 | R18: 135 | T18: 120 | U18: 60 | V18: 60 | Y18: 80 | AA18: 65 | AE18: 65 | AG18: 450 | AH18: 50 | AO18: 70 | AQ18: 60 | AT18: 80 | AU18: 50 | AX18: 115 | AY18: 425 | BA18: 30 | BE18: 40 | BL18: 70 | BN18: 60 | BT18: 70 | BV18: 55 | BY18: 60 | CB18: 50 | CC18: 295 | CD18: 50 | CE18: 60 | CJ18: 60 | CR18: 50 | CT18: 60 | CU18: 280 | DJ18: =SUM(CV18:DI18) -> 0 | DP18: =SUM(DK18:DO18) -> 0 | DQ18: 1795
A19: 18 | B19: Du Tranoix Freddy | C19: 50 | D19: 40 | F19: 50 | G19: 50 | H19: 190 | I19: 40 | J19: 50 | K19: 40 | N19: 75 | O19: 50 | P19: 65 | R19: 320 | T19: 40 | U19: 60 | V19: 40 | X19: 60 | Y19: 60 | AD19: 80 | AE19: 40 | AG19: 380 | AH19: 50 | AI19: 75 | AJ19: 50 | AL19: 75 | AM19: 50 | AO19: 70 | AQ19: 40 | AS19: 65 | AT19: 55 | AU19: 50 | AW19: 52 | AX19: 85 | AY19: 717 | BG19: 50 | BH19: 60 | BJ19: 45 | BK19: 40 | BL19: 195 | BM19: 40 | BN19: 80 | BS19: 70 | BT19: 45 | BU19: 85 | BV19: 55 | BX19: 60 | CB19: 50 | CC19: 485 | CD19: 75 | CE19: 50 | CG19: 54 | CI19: 75 | CJ19: 40 | CN19: 60 | CQ19: 100 | CS19: 40 | CT19: 40 | CU19: 534 | CV19: 50 | CX19: 80 | CY19: 45 | CZ19: 50 | DB19: 70 | DC19: 55 | DE19: 40 | DF19: 75 | DH19: 75 | DI19: 50 | DJ19: 590 | DP19: 0 | DQ19: 3411
A20: 19 | B20: Ghijs Koen | H20: 0 | R20: 0 | AG20: 0 | AY20: 0 | BL20: 0 | CC20: 0 | CU20: 0 | DJ20: 0 | DP20: 0 | DQ20: 0
A21: 20 | B21: Koops Arie | C21: 50 | D21: 40 | E21: 40 | G21: 50 | H21: 180 | J21: 50 | K21: 60 | L21: 75 | N21: 50 | O21: 115 | P21: 150 | R21: 500 | S21: 30 | T21: 120 | V21: 60 | W21: 30 | X21: 100 | Z21: 30 | AA21: 115 | AC21: 30 | AD21: 145 | AF21: 30 | AG21: =SUM(S21:AF21) -> 690 | AH21: 50 | AI21: 75 | AK21: 30 | AL21: 105 | AO21: 105 | AP21: 105 | AQ21: 60 | AR21: 30 | AS21: 110 | AU21: 90 | AV21: 30 | AW21: 52 | AX21: 115 | AY21: 957 | AZ21: 30 | BA21: 30 | BC21: 30 | BD21: 150 | BG21: 90 | BI21: 30 | BJ21: 90 | BL21: 450 | BM21: 180 | BS21: 70 | BU21: 110 | BW21: 40 | BX21: 60 | CA21: 30 | CC21: 490 | CL21: 30 | CM21: 70 | CQ21: 100 | CT21: 60 | CU21: 260 | DE21: 60 | DF21: 75 | DH21: 75 | DI21: 50 | DJ21: =SUM(CV21:DI21) -> 260 | DP21: =SUM(DK21:DO21) -> 0 | DQ21: 3787
A22: 21 | B22: Lauwaert Kris | H22: 0 | R22: 0 | AG22: 0 | AJ22: 50 | AL22: 50 | AQ22: 55 | AT22: 62 | AU22: 35 | AW22: 52 | AY22: 304 | BA22: 30 | BE22: 65 | BL22: 95 | BQ22: 45 | CC22: 45 | CD22: 50 | CI22: 40 | CJ22: 55 | CR22: 50 | CS22: 70 | CT22: 50 | CU22: 315 | CY22: 55 | DC22: 70 | DF22: 50 | DH22: 50 | DJ22: 225 | DP22: 0 | DQ22: 984
A23: 22 | B23: Machtelings Eric | H23: 0 | R23: 0 | AG23: 0 | AY23: 0 | BL23: 0 | CC23: 0 | CU23: 0 | DJ23: 0 | DP23: 0 | DQ23: 0
A24: 23 | B24: Meuleneire Hans | H24: 0 | R24: 0 | AG24: 0 | AY24: 0 | BL24: 0 | CC24: 0 | CU24: 0 | DJ24: 0 | DP24: 0 | DQ24: 0
A25: 24 | B25: Meulenijzer Kevin | H25: 0 | K25: 40 | R25: 40 | AG25: 0 | AJ25: 50 | AL25: 50 | AT25: 62 | AY25: 162 | BA25: 30 | BE25: 65 | BL25: 95 | BQ25: 45 | CC25: 45 | CS25: 70 | CU25: 70 | DC25: 50 | DJ25: 50 | DP25: 0 | DQ25: 462
A26: 25 | B26: Meulenijzer Roland | C26: 50 | D26: 40 | E26: 40 | F26: 50 | G26: 50 | H26: 230 | J26: 50 | K26: 60 | N26: 75 | Q26: 60 | R26: 245 | T26: 120 | V26: 60 | X26: 100 | AA26: 65 | AB26: 50 | AE26: 65 | AG26: 460 | AH26: 50 | AJ26: 50 | AL26: 75 | AM26: 60 | AO26: 70 | AP26: 105 | AQ26: 60 | AW26: 52 | AX26: 115 | AY26: 637 | BA26: 30 | BB26: 75 | BD26: 150 | BE26: 40 | BH26: 60 | BJ26: 90 | BK26: 120 | BL26: 565 | BM26: 180 | BN26: 60 | BP26: 60 | BQ26: 45 | BS26: 70 | BT26: 70 | BU26: 110 | BW26: 40 | CB26: 50 | CC26: 685 | CD26: 50 | CE26: 60 | CG26: 54 | CI26: 105 | CJ26: 60 | CM26: 70 | CN26: 60 | CO26: 30 | CP26: 65 | CQ26: 85 | CR26: 75 | CS26: 150 | CT26: 60 | CU26: 924 | CV26: 50 | CX26: 105 | CY26: 85 | CZ26: 50 | DF26: 75 | DI26: 50 | DJ26: 415 | DP26: 0 | DQ26: 4161
A27: 26 | B27: Mincke Andy | D27: 40 | E27: 40 | F27: 50 | H27: 130 | J27: 50 | M27: 75 | N27: 100 | R27: 225 | T27: 120 | V27: 60 | Y27: 80 | AA27: 65 | AB27: 50 | AE27: 65 | AG27: 440 | AH27: 50 | AI27: 140 | AY27: 190 | BL27: 0 | CC27: 0 | CU27: 0 | DJ27: =SUM(CV27:DI27) -> 0 | DP27: =SUM(DK27:DO27) -> 0 | DQ27: 985
A28: 27 | B28: Rokegem Guy | H28: 0 | L28: 75 | N28: 75 | R28: 150 | U28: 60 | V28: 70 | Y28: 60 | AE28: 65 | AG28: 255 | AI28: 75 | AO28: 70 | AP28: 85 | AT28: 88 | AX28: 85 | AY28: 403 | BG28: 60 | BL28: 60 | BN28: 80 | BQ28: 75 | BT28: 70 | BV28: 55 | CC28: 280 | CJ28: 80 | CU28: 80 | DJ28: 0 | DP28: 0 | DQ28: 1228
A29: 28 | B29: Schietecatte Bastiaan | H29: 0 | R29: 0 | AG29: 0 | AY29: 0 | BL29: 0 | CC29: 0 | CU29: 0 | DJ29: 0 | DP29: 0 | DQ29: 0
A30: 29 | B30: Slagmeulder Chris | C30: 50 | D30: 40 | E30: 40 | G30: 50 | H30: 180 | J30: 50 | K30: 60 | L30: 75 | M30: 40 | N30: 100 | O30: 75 | R30: 400 | Y30: 80 | AA30: 65 | AB30: 50 | AD30: 70 | AE30: 65 | AG30: 330 | AH30: 50 | AI30: 110 | AL30: 105 | AM30: 60 | AO30: 70 | AQ30: 60 | AW30: 52 | AY30: 507 | BB30: 50 | BE30: 40 | BG30: 50 | BH30: 60 | BK30: 40 | BL30: 240 | BM30: 40 | BN30: 110 | BP30: 60 | BQ30: 75 | BT30: 70 | BU30: 110 | CC30: 465 | CD30: 75 | CE30: 40 | CG30: 54 | CI30: 50 | CN30: 60 | CQ30: 100 | CU30: 379 | CV30: 50 | CX30: 105 | DC30: 75 | DJ30: 230 | DP30: 0 | DQ30: 2731
A31: 30 | B31: Thijs Bruno | H31: 0 | R31: 0 | AG31: 0 | AY31: 0 | BL31: 0 | CC31: 0 | CU31: 0 | DJ31: =SUM(CV31:DI31) -> 0 | DP31: =SUM(DK31:DO31) -> 0 | DQ31: 0
A32: 31 | B32: Thijs Eric | H32: 0 | R32: 0 | AG32: 0 | AY32: 0 | BL32: 0 | CC32: 0 | CU32: 0 | DJ32: 0 | DP32: 0 | DQ32: 0
A33: 32 | B33: Thijs José | H33: 0 | R33: 0 | AG33: 0 | AY33: 0 | BC33: 30 | BL33: 30 | CC33: 0 | CU33: 0 | DJ33: 0 | DP33: 0 | DQ33: 30
A34: 33 | B34: Van Bockstaele Eddy | H34: 0 | P34: 40 | R34: 40 | AE34: 40 | AG34: =SUM(S34:AE34) -> 40 | AH34: 30 | AI34: 50 | AO34: 40 | AP34: 40 | AQ34: 40 | AY34: =SUM(AH34:AX34) -> 200 | BD34: 40 | BE34: 40 | BG34: 60 | BK34: 40 | BL34: =SUM(AZ34:BK34) -> 180 | BP34: 60 | BQ34: 45 | BS34: 40 | BT34: 45 | BU34: 60 | BV34: 37 | CB34: 50 | CC34: =SUM(BM34:CB34) -> 337 | CD34: 50 | CE34: 40 | CG34: 32 | CI34: 50 | CJ34: 40 | CP34: 65 | CQ34: 85 | CR34: 75 | CS34: 40 | CT34: 40 | CU34: =SUM(CD34:CT34) -> 517 | CZ34: 50 | DH34: 40 | DJ34: 90 | DP34: 0 | DQ34: =H34+R34+AG34+AY34+BL34+CC34+CU34+DJ34+DP34 -> 1404
A35: 34 | B35: Van Caenegem Geert | D35: 40 | H35: 40 | I35: 60 | R35: 60 | U35: 60 | V35: 60 | AB35: 50 | AE35: 65 | AG35: 235 | AH35: 30 | AJ35: 50 | AT35: 55 | AU35: 40 | AY35: 175 | BA35: 30 | BB35: 50 | BE35: 40 | BL35: 120 | BP35: 60 | BT35: 45 | BW35: 40 | BY35: 40 | CC35: 185 | CD35: 50 | CE35: 60 | CI35: 50 | CQ35: 25 | CT35: 37 | CU35: 222 | CV35: 50 | CY35: 45 | DF35: 35 | DI35: 50 | DJ35: 180 | DP35: 0 | DQ35: 1217
A36: 35 | B36: Van Cleemputte Jurgen | C36: 50 | H36: 50 | J36: 50 | L36: 75 | N36: 75 | R36: 200 | U36: 60 | V36: 70 | Y36: 60 | AE36: 65 | AG36: 255 | AI36: 75 | AO36: 70 | AP36: 85 | AT36: 88 | AX36: 85 | AY36: 403 | BA36: 105 | BB36: 75 | BG36: 60 | BH36: 60 | BJ36: 90 | BL36: 390 | BT36: 70 | BV36: 55 | CC36: 125 | CJ36: 80 | CU36: 80 | DJ36: 0 | DP36: 0 | DQ36: 1503
A37: 36 | B37: Van De Maele Etienne | C37: 50 | D37: 40 | H37: 90 | R37: 0 | V37: 60 | W37: 30 | Y37: 35 | Z37: 30 | AA37: 65 | AC37: 30 | AE37: 40 | AF37: 30 | AG37: =SUM(S37:AF37) -> 320 | AH37: 50 | AK37: 30 | AQ37: 60 | AR37: 30 | AV37: 30 | AX37: 115 | AY37: 315 | AZ37: 30 | BC37: 30 | BD37: 150 | BI37: 30 | BL37: 240 | BM37: 40 | BN37: 40 | BO37: 30 | BP37: 60 | BQ37: 75 | BR37: 30 | BT37: 45 | BW37: 40 | BX37: 60 | BY37: 60 | CA37: 30 | CC37: 510 | CE37: 60 | CH37: 30 | CI37: 50 | CJ37: 60 | CL37: 30 | CU37: 230 | CV37: 30 | CW37: 30 | CY37: 45 | CZ37: 50 | DA37: 30 | DG37: 30 | DJ37: 215 | DP37: 0 | DQ37: 1920
A38: 37 | B38: Van De Maele Geert | C38: 50 | D38: 40 | F38: 50 | G38: 50 | H38: 190 | I38: 60 | K38: 60 | O38: 75 | R38: 195 | U38: 60 | V38: 60 | X38: 60 | Y38: 80 | AA38: 65 | AG38: 325 | AI38: 75 | AO38: 70 | AP38: 85 | AT38: 80 | AU38: 50 | AX38: 115 | AY38: 475 | BA38: 30 | BE38: 40 | BK38: 120 | BL38: 190 | BN38: 60 | BT38: 45 | BY38: 60 | CC38: 165 | CD38: 75 | CE38: 60 | CQ38: 75 | CR38: 50 | CU38: 260 | DJ38: 0 | DP38: 0 | DQ38: 1800
A39: 38 | B39: Van De Maele Stefan | G39: 50 | H39: 50 | R39: 0 | AG39: 0 | AY39: 0 | BL39: 0 | CC39: 0 | CU39: 0 | DJ39: 0 | DP39: 0 | DQ39: 50
A40: 39 | B40: Van de Velde Herman | C40: 50 | F40: 50 | G40: 50 | H40: 150 | K40: 60 | M40: 75 | O40: 75 | R40: 210 | U40: 60 | V40: 105 | Y40: 80 | AA40: 65 | AE40: 65 | AG40: 375 | AH40: 50 | AI40: 75 | AM40: 60 | AO40: 70 | AQ40: 60 | AT40: 55 | AU40: 50 | AX40: 115 | AY40: 535 | BA40: 30 | BB40: 75 | BD40: 150 | BH40: 60 | BK40: 120 | BL40: 435 | BN40: 60 | BP40: 105 | BT40: 70 | BV40: 55 | BY40: 60 | CC40: 350 | CE40: 60 | CG40: 54 | CJ40: 60 | CN40: 60 | CP40: 65 | CQ40: 85 | CR40: 75 | CS40: 150 | CU40: 609 | CV40: 50 | CY40: 80 | DC40: 75 | DE40: 60 | DH40: 75 | DJ40: 340 | DP40: 0 | DQ40: 3004
A41: 40 | B41: Van de Velde Ivan | C41: 50 | F41: 50 | G41: 50 | H41: 150 | I41: 40 | J41: 50 | K41: 40 | L41: 40 | M41: 40 | N41: 50 | O41: 50 | P41: 65 | R41: 375 | T41: 40 | U41: 60 | X41: 60 | Y41: 60 | AA41: 70 | AD41: 80 | AE41: 40 | AG41: 410 | AH41: 50 | AI41: 75 | AL41: 75 | AM41: 50 | AO41: 70 | AP41: 60 | AQ41: 40 | AW41: 52 | AX41: 85 | AY41: 557 | BA41: 30 | BB41: 75 | BE41: 40 | BL41: 145 | BM41: 40 | BS41: 70 | BT41: 45 | BU41: 85 | BY41: 40 | CB41: 50 | CC41: 330 | CU41: 0 | DJ41: 0 | DP41: 0 | DQ41: 1967
A42: 41 | B42: Van de Velde Jarno | H42: 0 | R42: 0 | AG42: 0 | AY42: 0 | BL42: 0 | BY42: , | CC42: 0 | CI42: 50 | CU42: 50 | DJ42: 0 | DP42: 0 | DQ42: 50
A43: 42 | B43: Van De Velde Jens | H43: 0 | R43: 0 | AG43: 0 | AY43: 0 | BL43: 0 | CC43: 0 | CU43: 0 | DJ43: =SUM(CV43:DI43) -> 0 | DP43: =SUM(DK43:DO43) -> 0 | DQ43: 0
A44: 43 | B44: Van Der Gucht Bas | H44: 0 | R44: 0 | AG44: 0 | AY44: 0 | BL44: 0 | CC44: 0 | CU44: 0 | DJ44: 0 | DP44: 0 | DQ44: 0
A45: 44 | B45: Van Der Gucht Clo | C45: 50 | D45: 40 | E45: 40 | F45: 50 | G45: 50 | H45: 230 | I45: 40 | J45: 50 | K45: 60 | N45: 75 | O45: 50 | P45: 150 | Q45: 60 | R45: 485 | T45: 120 | U45: 60 | V45: 60 | Z45: 30 | AA45: 40 | AB45: 50 | AE45: 65 | AG45: 425 | AS45: 110 | AT45: 80 | AU45: 90 | AW45: 52 | AY45: 332 | BA45: 30 | BB45: 50 | BD45: 150 | BE45: 40 | BH45: 60 | BK45: 120 | BL45: 450 | BM45: 180 | BN45: 60 | CC45: 240 | CD45: 75 | CE45: 75 | CI45: 75 | CJ45: 60 | CM45: 70 | CN45: 60 | CS45: 150 | CT45: 85 | CU45: 650 | CV45: 50 | CX45: 80 | CY45: 45 | DC45: 75 | DH45: 75 | DI45: 50 | DJ45: 375 | DP45: 0 | DQ45: 3187
A46: 45 | B46: Van Der Gucht Sam | H46: 0 | R46: 0 | AG46: 0 | AY46: 0 | BL46: 0 | CC46: 0 | CU46: 0 | DJ46: 0 | DP46: 0 | DQ46: 0
A47: 46 | B47: Van Elsuwege Robin | H47: 0 | K47: 60 | O47: 70 | R47: 130 | AG47: 0 | AH47: 50 | AO47: 40 | AQ47: 60 | AX47: 115 | AY47: 265 | BE47: 40 | BH47: 35 | BL47: 75 | BY47: 60 | CC47: 60 | CJ47: 60 | CM47: 70 | CU47: 130 | DJ47: =SUM(CV47:DI47) -> 0 | DP47: =SUM(DK47:DO47) -> 0 | DQ47: 660
A48: 47 | B48: Van Gansbeke Robin | H48: 0 | K48: 60 | O48: 70 | R48: 130 | AG48: 0 | AQ48: 60 | AX48: 115 | AY48: 175 | BL48: 0 | BN48: 80 | BY48: 60 | CC48: 140 | CD48: 50 | CG48: 54 | CJ48: 60 | CM48: 70 | CU48: 234 | DJ48: =SUM(CV48:DI48) -> 0 | DP48: =SUM(DK48:DO48) -> 0 | DQ48: 679
A49: 48 | B49: Van Lierde Ronny | H49: 0 | R49: 0 | X49: 60 | AA49: 87 | AG49: 147 | AH49: 50 | AI49: 110 | AY49: 160 | BA49: 30 | BD49: 40 | BL49: 70 | BP49: 60 | CC49: 60 | CD49: 50 | CG49: 54 | CI49: 80 | CU49: 184 | CX49: 80 | DI49: 50 | DJ49: 130 | DP49: 0 | DQ49: 751
A50: 49 | B50: Van Waeyenberge Clebert | C50: 50 | D50: 40 | E50: 35 | F50: 35 | G50: 50 | H50: 210 | I50: 40 | J50: 80 | K50: 50 | L50: 75 | M50: 40 | N50: 100 | O50: 50 | P50: 65 | R50: 500 | T50: 40 | U50: 30 | W50: 30 | X50: 60 | Y50: 60 | Z50: 30 | AA50: 35 | AB50: 50 | AC50: 30 | AD50: 50 | AE50: 40 | AF50: 30 | AG50: =SUM(S50:AF50) -> 485 | AH50: 50 | AI50: 75 | AJ50: 50 | AK50: 30 | AL50: 50 | AM50: 50 | AN50: 50 | AP50: 60 | AQ50: 40 | AR50: 30 | AS50: 65 | AT50: 55 | AU50: 90 | AV50: 30 | AX50: 40 | AY50: 765 | AZ50: 30 | BA50: 30 | BB50: 50 | BC50: 30 | BD50: 40 | BE50: 70 | BG50: 50 | BH50: 60 | BI50: 30 | BJ50: 45 | BK50: 40 | BL50: 475 | BN50: 50 | BO50: 30 | BP50: 60 | BQ50: 75 | BR50: 30 | CA50: 30 | CC50: 275 | CD50: 75 | CE50: 60 | CH50: 30 | CI50: 75 | CJ50: 40 | CL50: 30 | CM50: 175 | CN50: 60 | CO50: 30 | CQ50: 75 | CR50: 30 | CS50: 40 | CT50: 40 | CU50: 760 | CV50: 50 | CW50: 30 | CX50: 40 | CY50: 45 | DA50: 30 | DB50: 40 | DF50: 35 | DG50: 30 | DH50: 75 | DI50: 50 | DJ50: 425 | DP50: 0 | DQ50: 3895
C51: =COUNT(C2:C50) -> 18 | D51: =COUNT(D2:D50) -> 17 | E51: 13 | F51: 12 | G51: 17 | H51: =COUNTIFS(H2:H50,">0") -> 25 | I51: =COUNT(I2:I50) -> 12 | J51: 15 | K51: 21 | L51: 12 | M51: 10 | N51: 16 | O51: 14 | P51: 11 | Q51: 5 | R51: =COUNTIFS(R2:R50,">0") -> 30 | S51: =COUNT(S2:S50) -> 2 | T51: 10 | U51: 13 | V51: 17 | W51: 4 | X51: 13 | Y51: 18 | Z51: 6 | AA51: 19 | AB51: 13 | AC51: 5 | AD51: 8 | AE51: 23 | AF51: 5 | AG51: =COUNTIFS(AG2:AG50,">0") -> 29 | AH51: =COUNT(AH2:AH50) -> 21 | AI51: 18 | AJ51: 10 | AK51: 6 | AL51: 14 | AM51: 12 | AN51: 1 | AO51: 19 | AP51: 15 | AQ51: 17 | AR51: 7 | AS51: 11 | AT51: 17 | AU51: 15 | AV51: 5 | AW51: 12 | AX51: 19 | AY51: =COUNTIFS(AY2:AY50,">0") -> 33 | AZ51: =COUNT(AZ2:AZ50) -> 6 | BA51: =COUNT(BA2:BA50) -> 22 | BB51: 15 | BC51: 6 | BD51: 13 | BE51: 18 | BF51: 0 | BG51: 9 | BH51: 14 | BI51: 4 | BJ51: 9 | BK51: 11 | BL51: =COUNTIFS(BL2:BL50,">0") -> 30 | BM51: =COUNT(BM2:BM50) -> 10 | BN51: 13 | BO51: 4 | BP51: 14 | BQ51: 14 | BR51: 4 | BS51: 10 | BT51: 20 | BU51: 10 | BV51: 8 | BW51: 6 | BX51: 6 | BY51: 16 | CA51: 4 | CB51: 9 | CC51: =COUNTIFS(CC2:CC50,">0") -> 30 | CD51: =COUNT(CD2:CD50) -> 19 | CE51: 17 | CF51: 1 | CG51: 12 | CH51: 4 | CI51: 16 | CJ51: 17 | CK51: 0 | CL51: 5 | CM51: 12 | CN51: 12 | CO51: 4 | CP51: 6 | CQ51: 15 | CR51: 15 | CS51: 14 | CT51: 14 | CU51: =COUNTIFS(CU2:CU50,">0") -> 30 | CV51: =COUNT(CV2:CV50) -> 15 | CW51: =COUNT(CW2:CW50) -> 4 | CX51: 9 | CY51: 12 | CZ51: 10 | DA51: 4 | DB51: 2 | DC51: 9 | DD51: 1 | DE51: 7 | DF51: 12 | DG51: 5 | DH51: 14 | DI51: 14 | DJ51: =COUNTIFS(DJ2:DJ50,">0") -> 22 | DK51: =COUNT(DK2:DK50) -> 0 | DL51: 0 | DM51: 0 | DN51: 0 | DO51: 0 | DP51: =COUNTIFS(DP2:DP50,">0") -> 0 | DQ51: =COUNTIFS(DQ2:DQ50,">0") -> 39

Sheet Dames - Ptn
B1: 2015 DAMES - Punten | C1: 2015-02-14 | D1: 2015-02-15 | E1: 2015-02-21 | F1: 2015-02-22 | G1: 2015-02-28 | H1: Februari | I1: 2015-03-01 | J1: 2015-03-07 | K1: 2015-03-08 | L1: 2015-03-14 | M1: 2015-03-15 | N1: 2015-03-21 | O1: 2015-03-22 | P1: 2015-03-28 | Q1: 2015-03-29 | R1: Maart | S1: 2015-04-02 | T1: 2015-04-04 | U1: 2015-04-05 | V1: 2015-04-06 | W1: 2015-04-09 | X1: 2015-04-11 | Y1: 2015-04-12 | Z1: 2015-04-18 | AA1: 2015-04-19 | AB1: 2015-04-25 | AC1: 2015-04-26 | AD1: April | AE1: 2015-05-01 | AF1: 2015-05-02 | AG1: 2015-05-03 | AH1: 2015-05-07 | AI1: 2015-05-09 | AJ1: 2015-05-10 | AK1: 2015-05-14 | AL1: 2015-05-16 | AM1: 2015-05-17 | AN1: 2015-05-21 | AO1: 2015-05-23 | AP1: 2015-05-24 | AQ1: 2015-05-25 | AR1: 2015-05-28 | AS1: 2015-05-30 | AT1: 2015-05-31 | AU1: Mei | AV1: 2015-06-04 | AW1: 2015-06-06 | AX1: 2015-06-07 | AY1: 2015-06-11 | AZ1: 2015-06-13 | BA1: 2015-06-14 | BB1: ETENTJE 14/06 | BC1: 2015-06-18 | BD1: 2015-06-20 | BE1: 2015-06-21 | BF1: 2015-06-25 | BG1: 2015-06-27 | BH1: 2015-06-28 | BI1: Juni | BJ1: 2015-07-04 | BK1: 2015-07-05 | BL1: 2015-07-09 | BM1: 2015-07-11 | BN1: 2015-07-12 | BO1: 2015-07-16 | BP1: 2015-07-18 | BQ1: 2015-07-19 | BR1: 2015-07-21 | BS1: 2015-07-23 | BT1: 2015-07-23 | BU1: 2015-07-25 | BV1: 2015-07-26 | BW1: 2015-07-30 | BX1: 2015-07-30 | BY1: Juli | BZ1: 2015-08-01 | CA1: 2015-08-02 | CB1: 2015-08-06 | CC1: 2015-08-06 | CD1: 2015-08-08 | CE1: 2015-08-09 | CF1: 2015-08-13 | CG1: 2015-08-13 | CH1: 2015-08-15 | CI1: 2015-08-16 | CJ1: 2015-08-20 | CK1: 2015-08-21 | CL1: 2015-08-22 | CM1: 2015-08-23 | CN1: 2015-08-29 | CO1: 2015-08-30 | CP1: Augustus | CQ1: 2015-09-02 | CR1: 2015-09-05 | CS1: 2015-09-06 | CT1: 2015-09-09 | CU1: 2015-09-12 | CV1: 2015-09-13 | CW1: 2015-09-18 | CX1: 2015-09-19 | CY1: 2015-09-20 | CZ1: 2015-09-24 | DA1: 2015-09-26 | DB1: 2015-09-27 | DC1: September | DE1: Permanenten | DF1: EINDSTAND
A2: 1 | B2: Baele Greet | C2: 2 | D2: 2 | E2: 2 | F2: 2 | G2: 2 | H2: =SUM(C2:G2) -> 10 | K2: 2 | M2: 2 | O2: 2 | Q2: 2 | R2: =SUM(I2:Q2) -> 8 | U2: 2 | V2: 2 | X2: 2 | Y2: 2 | Z2: 2 | AA2: 2 | AC2: 3 | AD2: =SUM(S2:AC2) -> 15 | AE2: 2 | AF2: 2 | AJ2: 2 | AK2: 2 | AL2: 2 | AM2: 2 | AO2: 2 | AQ2: 4 | AT2: 2 | AU2: =SUM(AE2:AT2) -> 20 | AW2: 5 | AX2: 2 | AZ2: 2 | BB2: 2 | BE2: 2 | BI2: =SUM(AV2:BH2) -> 13 | BJ2: 2 | BK2: 2 | BM2: 2 | BN2: 2 | BP2: 2 | BQ2: 2 | BR2: 2 | BS2: 2 | BV2: 2 | BY2: =SUM(BJ2:BX2) -> 18 | BZ2: 2 | CA2: 2 | CB2: 2 | CD2: 2 | CE2: 2 | CF2: 2 | CI2: 2 | CK2: 2 | CL2: 2 | CM2: 2 | CN2: 2 | CP2: =SUM(BZ2:CO2) -> 22 | CQ2: 3 | CS2: 2 | CV2: 2 | CX2: 2 | DB2: 2 | DC2: =SUM(CQ2:DB2) -> 11 | DE2: =SUM(DD2:DD2) -> 0 | DF2: =H2+R2+AD2+AU2+BI2+BY2+CP2+DC2+DE2 -> 117
A3: =A2+1 -> 2 | B3: Borremans Martine | H3: =SUM(C3:G3) -> 0 | R3: 0 | AD3: =SUM(S3:AC3) -> 0 | AU3: 0 | BI3: =SUM(AV3:BH3) -> 0 | BQ3: 2 | BY3: 2 | CP3: =SUM(BZ3:CO3) -> 0 | DC3: 0 | DE3: =SUM(DD3:DD3) -> 0 | DF3: 2
A4: =A3+1 -> 3 | B4: Cordier Arlette | G4: 2 | H4: =SUM(C4:G4) -> 2 | J4: 2 | K4: 2 | N4: 2 | R4: 6 | X4: 2 | Y4: 2 | Z4: 2 | AA4: 2 | AB4: 2 | AC4: 3 | AD4: 13 | AE4: 2 | AG4: 2 | AJ4: 2 | AK4: 2 | AL4: 2 | AM4: 2 | AO4: 2 | AP4: 2 | AQ4: 4 | AS4: 2 | AT4: 2 | AU4: 24 | AX4: 2 | AZ4: 2 | BA4: 2 | BB4: 2 | BE4: 2 | BG4: 2 | BH4: 2 | BI4: =SUM(AV4:BH4) -> 14 | BJ4: 2 | BK4: 2 | BN4: 2 | BP4: 2 | BQ4: 2 | BR4: 2 | BS4: 2 | BX4: 2 | BY4: 16 | BZ4: 2 | CA4: 2 | CB4: 2 | CD4: 2 | CE4: 2 | CH4: 2 | CI4: 2 | CK4: 2 | CL4: 2 | CM4: 2 | CN4: 2 | CO4: 2 | CP4: 24 | CQ4: 3 | CR4: 2 | CS4: 2 | CT4: 2 | DB4: 2 | DC4: 11 | DE4: 0 | DF4: 110
A5: 4 | B5: De Clercq Elsie | H5: 0 | R5: 0 | AD5: 0 | AU5: 0 | BI5: 0 | BY5: 0 | CP5: =SUM(BZ5:CO5) -> 0 | DC5: 0 | DE5: =SUM(DD5:DD5) -> 0 | DF5: 0
A6: 5 | B6: De Clercq Marijke | H6: 0 | R6: 0 | AD6: 0 | AM6: 2 | AU6: 2 | BI6: 0 | BY6: 0 | CP6: 0 | DC6: 0 | DE6: 0 | DF6: 2
A7: 6 | B7: De Maeseneire Caroline | H7: 0 | R7: 0 | AD7: 0 | AQ7: 2 | AU7: 2 | BA7: 2 | BB7: 2 | BI7: 4 | BY7: 0 | CL7: 2 | CM7: 2 | CP7: 4 | DC7: 0 | DE7: 0 | DF7: 10
A8: 7 | B8: D'Hondt Kristien | H8: 0 | R8: 0 | AD8: 0 | AQ8: 2 | AU8: 2 | BB8: 2 | BI8: 2 | BY8: 0 | CO8: 2 | CP8: 2 | DC8: 0 | DE8: 0 | DF8: 6
A9: 8 | B9: Heyndrickx Marinka | H9: 0 | R9: 0 | AD9: 0 | AU9: 0 | BB9: 2 | BI9: 2 | BY9: 0 | CP9: =SUM(BZ9:CO9) -> 0 | DC9: 0 | DE9: =SUM(DD9:DD9) -> 0 | DF9: 2
A10: 9 | B10: Huybens Annelies | H10: 0 | R10: 0 | AD10: 0 | AU10: 0 | BI10: 0 | BY10: 0 | CP10: 0 | DC10: 0 | DE10: 0 | DF10: 0
A11: 10 | B11: Koops Katleen | C11: 2 | E11: 2 | G11: 2 | H11: 6 | J11: 2 | L11: 2 | N11: 2 | O11: 2 | P11: 2 | R11: 10 | V11: 2 | X11: 2 | Z11: 2 | AB11: 2 | AD11: 8 | AE11: 2 | AF11: 2 | AI11: 2 | AK11: 2 | AL11: 2 | AS11: 2 | AU11: 12 | AW11: 5 | AZ11: 2 | BD11: 2 | BG11: 2 | BI11: 11 | BJ11: 2 | BM11: 2 | BR11: 2 | BU11: 2 | BY11: 8 | BZ11: 2 | CH11: 2 | CL11: 2 | CN11: 2 | CP11: =SUM(BZ11:CO11) -> 8 | CR11: 2 | CX11: 2 | DC11: 4 | DE11: =SUM(DD11:DD11) -> 0 | DF11: 67
A12: 11 | B12: Liedts Marie-Jeanne | D12: 2 | F12: 2 | H12: 4 | K12: 2 | M12: 2 | N12: 2 | O12: 2 | R12: 8 | V12: 2 | Y12: 2 | AC12: 3 | AD12: 7 | AF12: 2 | AK12: 2 | AL12: 2 | AM12: 2 | AP12: 2 | AQ12: 2 | AS12: 2 | AT12: 2 | AU12: 16 | AW12: 5 | AX12: 2 | AZ12: 2 | BD12: 2 | BH12: 2 | BI12: 13 | BJ12: 2 | BK12: 2 | BN12: 2 | BS12: 2 | BV12: 2 | BY12: 10 | BZ12: 2 | CA12: 2 | CB12: 2 | CD12: 2 | CE12: 2 | CF12: 2 | CI12: 2 | CK12: 2 | CL12: 2 | CM12: 2 | CN12: 2 | CO12: 2 | CP12: 24 | CR12: 2 | CV12: 2 | CW12: 2 | CX12: 2 | DA12: 2 | DB12: 2 | DC12: 12 | DE12: 0 | DF12: 94
A13: 12 | B13: Meulenijzer Kelly | H13: 0 | R13: 0 | AD13: 0 | AQ13: 2 | AU13: 2 | AW13: 5 | BI13: 5 | BQ13: 2 | BY13: 2 | CD13: 2 | CI13: 2 | CO13: 2 | CP13: 6 | CV13: 2 | DC13: 2 | DE13: 0 | DF13: 17
A14: 13 | B14: Meulenijzer Martine | H14: 0 | P14: 2 | R14: 2 | Z14: 2 | AC14: 3 | AD14: 5 | AE14: 2 | AF14: 2 | AK14: 2 | AL14: 2 | AM14: 2 | AO14: 2 | AP14: 2 | AQ14: 2 | AS14: 2 | AT14: 2 | AU14: 20 | AW14: 5 | AX14: 2 | AZ14: 2 | BA14: 2 | BB14: 2 | BD14: 2 | BH14: 2 | BI14: 17 | BM14: 2 | BP14: 2 | BQ14: 2 | BR14: 2 | BS14: 2 | BX14: 2 | BY14: 12 | BZ14: 2 | CA14: 2 | CB14: 2 | CD14: 2 | CK14: 2 | CL14: 2 | CM14: 2 | CN14: 2 | CP14: 16 | CT14: 2 | DC14: 2 | DE14: 0 | DF14: 74
A15: 14 | B15: Schilders Monique | H15: 0 | R15: 0 | S15: 1 | W15: 1 | Y15: 2 | AD15: 4 | AH15: 1 | AK15: 2 | AR15: 1 | AU15: 4 | AX15: 2 | AY15: 1 | BF15: 1 | BI15: 4 | BL15: 1 | BO15: 1 | BT15: 2 | BY15: 4 | CC15: 2 | CP15: 2 | CZ15: 1 | DC15: 1 | DE15: 0 | DF15: 19
A16: 15 | B16: Slagmeulder Nadine | G16: 2 | H16: 2 | J16: 2 | K16: 2 | N16: 2 | O16: 2 | R16: 8 | U16: 2 | V16: 2 | X16: 2 | Y16: 2 | Z16: 2 | AA16: 2 | AB16: 2 | AC16: 3 | AD16: 17 | AE16: 2 | AF16: 2 | AG16: 2 | AJ16: 2 | AK16: 2 | AL16: 2 | AM16: 2 | AO16: 2 | AP16: 2 | AQ16: 4 | AS16: 2 | AT16: 2 | AU16: 26 | AW16: 5 | AX16: 2 | AZ16: 2 | BA16: 2 | BB16: 2 | BD16: 2 | BE16: 2 | BG16: 2 | BH16: 2 | BI16: 21 | BJ16: 2 | BM16: 2 | BN16: 2 | BP16: 2 | BR16: 2 | BS16: 2 | BY16: 12 | BZ16: 2 | CA16: 2 | CB16: 2 | CD16: 2 | CE16: 2 | CH16: 2 | CI16: 2 | CK16: 2 | CL16: 2 | CM16: 2 | CN16: 2 | CO16: 2 | CP16: 24 | CQ16: 3 | CS16: 2 | CT16: 2 | DA16: 2 | DB16: 2 | DC16: 11 | DE16: 0 | DF16: 121
A17: 16 | B17: Van Damme Els | H17: 0 | R17: 0 | AD17: 0 | AU17: 0 | BI17: 0 | BY17: 0 | CP17: 0 | DC17: 0 | DE17: 0 | DF17: 0
A18: 17 | B18: Van Damme Nancy | H18: 0 | R18: 0 | AD18: 0 | AU18: 0 | BI18: 0 | BY18: 0 | CP18: 0 | DC18: 0 | DE18: 0 | DF18: 0
A19: 18 | B19: Van Der Gucht Sara | H19: 0 | R19: 0 | AD19: 0 | AU19: 0 | BI19: 0 | BY19: 0 | CP19: 0 | DC19: 0 | DE19: 0 | DF19: 0
A20: 19 | B20: Van Dijcke Anja | H20: 0 | R20: 0 | AD20: 0 | AU20: 0 | BI20: 0 | BY20: 0 | CP20: =SUM(BZ20:CO20) -> 0 | DC20: 0 | DE20: =SUM(DD20:DD20) -> 0 | DF20: 0
A21: 20 | B21: Van Herzeele Georgette | H21: 0 | R21: 0 | AD21: 0 | AU21: 0 | BI21: 0 | BY21: 0 | CP21: 0 | DC21: 0 | DE21: 0 | DF21: 0
C22: =COUNT(C2:C21) -> 2 | D22: =COUNT(D2:D21) -> 2 | E22: =COUNT(E2:E21) -> 2 | F22: =COUNT(F2:F21) -> 2 | G22: =COUNT(G2:G21) -> 4 | H22: =COUNTIFS(H2:H21,">0") -> 5 | I22: =COUNT(I2:I21) -> 0 | J22: 3 | K22: 4 | L22: 1 | M22: 2 | N22: 4 | O22: 4 | P22: 2 | Q22: 1 | R22: =COUNTIFS(R2:R21,">0") -> 6 | S22: =COUNT(S2:S21) -> 1 | T22: 0 | U22: 2 | V22: 4 | W22: 1 | X22: 4 | Y22: 5 | Z22: 5 | AA22: 3 | AB22: 3 | AC22: 5 | AD22: =COUNTIFS(AD2:AD21,">0") -> 7 | AE22: =COUNT(AE2:AE21) -> 5 | AF22: 5 | AG22: 2 | AH22: 1 | AI22: 1 | AJ22: 3 | AK22: 7 | AL22: 6 | AM22: 6 | AN22: 0 | AO22: 4 | AP22: 4 | AQ22: 8 | AR22: 1 | AS22: 5 | AT22: 5 | AU22: =COUNTIFS(AU2:AU21,">0") -> 11 | AV22: =COUNT(AV2:AV21) -> 0 | AW22: 6 | AX22: 6 | AY22: 1 | AZ22: 6 | BA22: 4 | BB22: 7 | BC22: 0 | BD22: 4 | BE22: 3 | BF22: 1 | BG22: 3 | BH22: 4 | BI22: =COUNTIFS(BI2:BI21,">0") -> 11 | BJ22: =COUNT(BJ2:BJ21) -> 5 | BK22: 3 | BL22: 1 | BM22: 4 | BN22: 4 | BO22: 1 | BP22: 4 | BQ22: 5 | BR22: 5 | BS22: 5 | BT22: 1 | BU22: 1 | BV22: 2 | BW22: 0 | BX22: 2 | BY22: =COUNTIFS(BY2:BY21,">0") -> 9 | BZ22: =COUNT(BZ2:BZ21) -> 6 | CA22: 5 | CB22: 5 | CC22: 1 | CD22: 6 | CE22: 4 | CF22: 2 | CG22: 0 | CH22: 3 | CI22: 5 | CJ22: 0 | CK22: 5 | CL22: 7 | CM22: 6 | CN22: 6 | CO22: 5 | CP22: =COUNTIFS(CP2:CP21,">0") -> 10 | CQ22: =COUNT(CQ2:CQ21) -> 3 | CR22: 3 | CS22: 3 | CT22: 3 | CU22: 0 | CV22: 3 | CW22: 1 | CX22: 3 | CY22: 0 | CZ22: 1 | DA22: 2 | DB22: 4 | DC22: =COUNTIFS(DC2:DC21,">0") -> 8 | DD22: =COUNT(DD2:DD21) -> 0 | DE22: =COUNTIFS(DE2:DE21,">0") -> 0 | DF22: =COUNTIFS(DF2:DF21,">0") -> 13

Sheet Dames - Kms
B1: 2015 DAMES - Kms | C1: 2015-02-14 | D1: 2015-02-15 | E1: 2015-02-21 | F1: 2015-02-22 | G1: 2015-02-28 | H1: Februari | I1: 2015-03-01 | J1: 2015-03-07 | K1: 2015-03-08 | L1: 2015-03-14 | M1: 2015-03-15 | N1: 2015-03-21 | O1: 2015-03-22 | P1: 2015-03-28 | Q1: 2015-03-29 | R1: Maart | S1: 2015-04-02 | T1: 2015-04-04 | U1: 2015-04-05 | V1: 2015-04-06 | W1: 2015-04-09 | X1: 2015-04-11 | Y1: 2015-04-12 | Z1: 2015-04-18 | AA1: 2015-04-19 | AB1: 2015-04-25 | AC1: 2015-04-26 | AD1: April | AE1: 2015-05-01 | AF1: 2015-05-02 | AG1: 2015-05-03 | AH1: 2015-05-07 | AI1: 2015-05-09 | AJ1: 2015-05-10 | AK1: 2015-05-14 | AL1: 2015-05-16 | AM1: 2015-05-17 | AN1: 2015-05-21 | AO1: 2015-05-23 | AP1: 2015-05-24 | AQ1: 2015-05-25 | AR1: 2015-05-28 | AS1: 2015-05-30 | AT1: 2015-05-31 | AU1: Mei | AV1: 2015-06-04 | AW1: 2015-06-06 | AX1: 2015-06-07 | AY1: 2015-06-11 | AZ1: 2015-06-13 | BA1: 2015-06-14 | BB1: 2015-06-18 | BC1: 2015-06-20 | BD1: 2015-06-21 | BE1: 2015-06-25 | BF1: 2015-06-27 | BG1: 2015-06-28 | BH1: Juni | BI1: 2015-07-04 | BJ1: 2015-07-05 | BK1: 2015-07-09 | BL1: 2015-07-11 | BM1: 2015-07-12 | BN1: 2015-07-16 | BO1: 2015-07-18 | BP1: 2015-07-19 | BQ1: 2015-07-21 | BR1: 2015-07-23 | BS1: 2015-07-23 | BT1: 2015-07-25 | BU1: 2015-07-26 | BV1: 2015-07-30 | BW1: 2015-07-30 | BX1: Juli | BY1: 2015-08-01 | BZ1: 2015-08-02 | CA1: 2015-08-06 | CB1: 2015-08-06 | CC1: 2015-08-08 | CD1: 2015-08-09 | CE1: 2015-08-13 | CF1: 2015-08-13 | CG1: 2015-08-15 | CH1: 2015-08-16 | CI1: 2015-08-20 | CJ1: 2015-08-21 | CK1: 2015-08-22 | CL1: 2015-08-23 | CM1: 2015-08-29 | CN1: 2015-08-30 | CO1: Augustus | CP1: 2015-09-02 | CQ1: 2015-09-05 | CR1: 2015-09-06 | CS1: 2015-09-09 | CT1: 2015-09-12 | CU1: 2015-09-13 | CV1: 2015-09-18 | CW1: 2015-09-19 | CX1: 2015-09-20 | CY1: 2015-09-24 | CZ1: 2015-09-26 | DA1: 2015-09-27 | DB1: September | DD1: Permanenten | DE1: EINDSTAND
A2: 1 | B2: Baele Greet | C2: 50 | D2: 40 | E2: 40 | F2: 50 | G2: 50 | H2: =SUM(C2:G2) -> 230 | K2: 60 | M2: 75 | O2: 75 | Q2: 40 | R2: =SUM(I2:Q2) -> 250 | U2: 60 | V2: 105 | X2: 60 | Y2: 80 | Z2: 65 | AA2: 50 | AC2: 65 | AD2: =SUM(S2:AC2) -> 485 | AE2: 50 | AF2: 75 | AJ2: 60 | AK2: 70 | AL2: 85 | AM2: 60 | AO2: 110 | AQ2: 90 | AT2: 115 | AU2: =SUM(AE2:AT2) -> 715 | AW2: 30 | AX2: 75 | AZ2: 150 | BD2: 60 | BH2: =SUM(AV2:BG2) -> 315 | BI2: 40 | BJ2: 60 | BL2: 105 | BM2: 75 | BO2: 70 | BP2: 70 | BQ2: 110 | BR2: 55 | BU2: 60 | BX2: =SUM(BI2:BW2) -> 645 | BY2: 75 | BZ2: 60 | CA2: 54 | CC2: 50 | CD2: 60 | CE2: 160 | CH2: 60 | CJ2: 65 | CK2: 85 | CL2: 75 | CM2: 150 | CO2: =SUM(BY2:CN2) -> 894 | CP2: 50 | CR2: 80 | CU2: 75 | CW2: 60 | DA2: 50 | DB2: =SUM(CP2:DA2) -> 315 | DD2: =SUM(DC2:DC2) -> 0 | DE2: =H2+R2+AD2+AU2+BH2+BX2+CO2+DB2+DD2 -> 3849
A3: =A2+1 -> 2 | B3: Borremans Martine | H3: =SUM(C3:G3) -> 0 | R3: 0 | AD3: =SUM(S3:AC3) -> 0 | AU3: 0 | BH3: =SUM(AV3:BG3) -> 0 | BP3: 45 | BX3: 45 | CO3: =SUM(BY3:CN3) -> 0 | DB3: 0 | DD3: =SUM(DC3:DC3) -> 0 | DE3: 45
A4: =A3+1 -> 3 | B4: Cordier Arlette | G4: 50 | H4: =SUM(C4:G4) -> 50 | J4: 50 | K4: 40 | N4: 50 | R4: 140 | X4: 40 | Y4: 35 | Z4: 40 | AA4: 50 | AB4: 50 | AC4: 65 | AD4: 280 | AE4: 50 | AG4: 25 | AJ4: 40 | AK4: 40 | AL4: 60 | AM4: 40 | AO4: 65 | AP4: 40 | AQ4: 90 | AS4: 25 | AT4: 40 | AU4: 515 | AX4: 25 | AZ4: 40 | BA4: 40 | BD4: 35 | BF4: 45 | BG4: 40 | BH4: 225 | BI4: 40 | BJ4: 40 | BM4: 45 | BO4: 40 | BP4: 45 | BQ4: 60 | BR4: 55 | BW4: 50 | BX4: 375 | BY4: 50 | BZ4: 40 | CA4: 32 | CC4: 50 | CD4: 40 | CG4: 70 | CH4: 40 | CJ4: 65 | CK4: 85 | CL4: 75 | CM4: 40 | CN4: 40 | CO4: 627 | CP4: 50 | CQ4: 40 | CR4: 45 | CS4: 50 | DA4: 50 | DB4: 235 | DD4: 0 | DE4: 2447
A5: 4 | B5: De Clercq Elsie | H5: 0 | R5: 0 | AD5: 0 | AU5: 0 | BH5: =SUM(AV5:BG5) -> 0 | BX5: 0 | CO5: =SUM(BY5:CN5) -> 0 | DB5: 0 | DD5: =SUM(DC5:DC5) -> 0 | DE5: 0
A6: 5 | B6: De Clercq Marijke | H6: 0 | R6: 0 | AD6: 0 | AM6: 40 | AU6: 40 | BH6: 0 | BX6: 0 | CO6: 0 | DB6: 0 | DD6: 0 | DE6: 40
A7: 6 | B7: De Maeseneire Caroline | H7: 0 | R7: 0 | AD7: 0 | AQ7: 40 | AU7: 40 | BA7: 40 | BH7: 40 | BX7: 0 | CK7: 85 | CL7: 75 | CN7: 25 | CO7: 185 | DB7: 0 | DD7: 0 | DE7: 265
A8: 7 | B8: D'Hondt Kristien | H8: 0 | R8: 0 | AD8: 0 | AQ8: 40 | AU8: 40 | BH8: 0 | BX8: 0 | CN8: 25 | CO8: 25 | DB8: 0 | DD8: 0 | DE8: 65
A9: 8 | B9: Heyndrickx Marinka | H9: 0 | R9: 0 | AD9: 0 | AU9: 0 | BH9: =SUM(AV9:BG9) -> 0 | BX9: 0 | CO9: =SUM(BY9:CN9) -> 0 | DB9: 0 | DD9: =SUM(DC9:DC9) -> 0 | DE9: 0
A10: 9 | B10: Huybens Annelies | H10: 0 | R10: 0 | AD10: 0 | AU10: 0 | BH10: 0 | BX10: 0 | CO10: 0 | DB10: 0 | DD10: 0 | DE10: 0
A11: 10 | B11: Koops Katleen | C11: 50 | E11: 40 | G11: 50 | H11: 140 | J11: 50 | L11: 75 | N11: 50 | O11: 115 | P11: 150 | R11: 440 | V11: 60 | X11: 100 | Z11: 115 | AA11: 145 | AD11: 420 | AE11: 50 | AF11: 75 | AI11: 105 | AK11: 105 | AL11: 105 | AS11: 52 | AU11: 492 | AW11: 30 | AZ11: 150 | BC11: 90 | BF11: 90 | BH11: =SUM(AV11:BG11) -> 360 | BI11: 180 | BL11: 60 | BQ11: 110 | BT11: 60 | BX11: 410 | BY11: 105 | CG11: 70 | CK11: 100 | CM11: 150 | CO11: =SUM(BY11:CN11) -> 425 | CQ11: 105 | CW11: 60 | DB11: 165 | DD11: =SUM(DC11:DC11) -> 0 | DE11: 2852
A12: 11 | B12: Liedts Marie-Jeanne | D12: 40 | F12: 35 | H12: 75 | K12: 40 | M12: 40 | N12: 25 | O12: 25 | R12: 130 | V12: 40 | Y12: 35 | AC12: 40 | AD12: 115 | AF12: 50 | AK12: 40 | AL12: 60 | AM12: 40 | AP12: 40 | AQ12: 40 | AS12: 52 | AT12: 40 | AU12: 362 | AW12: 30 | AX12: 50 | AZ12: 40 | BC12: 60 | BG12: 40 | BH12: 220 | BI12: 40 | BJ12: 40 | BM12: 45 | BR12: 55 | BU12: 40 | BX12: 220 | BY12: 50 | BZ12: 40 | CA12: 54 | CC12: 50 | CD12: 40 | CE12: 160 | CH12: 60 | CJ12: 65 | CK12: 85 | CL12: 75 | CM12: 40 | CN12: 40 | CO12: 759 | CQ12: 40 | CU12: 75 | CV12: 35 | CW12: 80 | CZ12: 40 | DA12: 50 | DB12: 320 | DD12: 0 | DE12: 2201
A13: 12 | B13: Meulenijzer Kelly | H13: 0 | R13: 0 | AD13: 0 | AQ13: 50 | AU13: 50 | AW13: 30 | BH13: 30 | BP13: 45 | BX13: 45 | CC13: 40 | CH13: 40 | CN13: 35 | CO13: 115 | CU13: 40 | DB13: 40 | DD13: 0 | DE13: 280
A14: 13 | B14: Meulenijzer Martine | H14: 0 | P14: 40 | R14: 40 | Z14: 40 | AC14: 40 | AD14: 80 | AE14: 30 | AF14: 50 | AK14: 40 | AL14: 40 | AM14: 40 | AO14: 65 | AP14: 40 | AQ14: 25 | AS14: 25 | AT14: 40 | AU14: 395 | AW14: 30 | AX14: 50 | AZ14: 40 | BA14: 40 | BC14: 60 | BG14: 40 | BH14: 260 | BL14: 60 | BO14: 40 | BP14: 45 | BQ14: 60 | BR14: 37 | BW14: 50 | BX14: 292 | BY14: 50 | BZ14: 40 | CA14: 32 | CJ14: 65 | CK14: 85 | CL14: 75 | CM14: 40 | CO14: 387 | CS14: 50 | DB14: 50 | DD14: 0 | DE14: 1504
A15: 14 | B15: Schilders Monique | H15: 0 | R15: 0 | S15: 30 | W15: 30 | Y15: 35 | AD15: 95 | AH15: 30 | AK15: 40 | AR15: 30 | AU15: 100 | AX15: 25 | AY15: 30 | BE15: 30 | BH15: 85 | BK15: 30 | BN15: 30 | BS15: 40 | BX15: 100 | CB15: 30 | CO15: 30 | CY15: 30 | DB15: 30 | DD15: 0 | DE15: 440
A16: 15 | B16: Slagmeulder Nadine | G16: 50 | H16: 50 | J16: 50 | K16: 40 | N16: 50 | O16: 25 | R16: 165 | U16: 30 | V16: 45 | X16: 40 | Y16: 35 | Z16: 40 | AA16: 50 | AB16: 50 | AC16: 40 | AD16: 330 | AE16: 50 | AF16: 50 | AG16: 25 | AJ16: 40 | AK16: 40 | AL16: 60 | AM16: 40 | AO16: 65 | AP16: 40 | AQ16: 90 | AS16: 25 | AT16: 40 | AU16: 565 | AW16: 30 | AX16: 50 | AZ16: 40 | BA16: 40 | BC16: 35 | BD16: 35 | BF16: 45 | BG16: 40 | BH16: 315 | BI16: 40 | BL16: 60 | BM16: 45 | BO16: 40 | BQ16: 60 | BR16: 55 | BX16: 300 | BY16: 50 | BZ16: 40 | CA16: 32 | CC16: 50 | CD16: 40 | CG16: 70 | CH16: 40 | CJ16: 65 | CK16: 85 | CL16: 75 | CM16: 40 | CN16: 40 | CO16: 627 | CP16: 30 | CR16: 45 | CS16: 50 | CZ16: 40 | DA16: 50 | DB16: 215 | DD16: 0 | DE16: 2567
A17: 16 | B17: Van Damme Els | H17: 0 | R17: 0 | AD17: 0 | AU17: 0 | BH17: 0 | BX17: 0 | CO17: 0 | DB17: 0 | DD17: 0 | DE17: 0
A18: 17 | B18: Van Damme Nancy | H18: 0 | R18: 0 | AD18: 0 | AU18: 0 | BH18: 0 | BX18: 0 | CO18: 0 | DB18: 0 | DD18: 0 | DE18: 0
A19: 18 | B19: Van Der Gucht Sara | H19: 0 | R19: 0 | AD19: 0 | AU19: 0 | BH19: 0 | BX19: 0 | CO19: 0 | DB19: 0 | DD19: 0 | DE19: 0
A20: 19 | B20: Van Dijcke Anja | H20: 0 | R20: 0 | AD20: 0 | AU20: 0 | BH20: =SUM(AV20:BG20) -> 0 | BX20: 0 | CO20: =SUM(BY20:CN20) -> 0 | DB20: 0 | DD20: =SUM(DC20:DC20) -> 0 | DE20: 0
A21: 20 | B21: Van Herzeele Georgette | H21: 0 | R21: 0 | AD21: 0 | AU21: 0 | BH21: 0 | BX21: 0 | CO21: 0 | DB21: 0 | DD21: 0 | DE21: 0
C22: =COUNT(C2:C21) -> 2 | D22: 2 | E22: 2 | F22: 2 | G22: 4 | H22: =COUNTIFS(H2:H21,">0") -> 5 | I22: =COUNT(I2:I21) -> 0 | J22: 3 | K22: 4 | L22: 1 | M22: 2 | N22: 4 | O22: 4 | P22: 2 | Q22: 1 | R22: =COUNTIFS(R2:R21,">0") -> 6 | S22: =COUNT(S2:S21) -> 1 | T22: 0 | U22: 2 | V22: 4 | W22: 1 | X22: 4 | Y22: 5 | Z22: 5 | AA22: 4 | AB22: 2 | AC22: 5 | AD22: =COUNTIFS(AD2:AD21,">0") -> 7 | AE22: =COUNT(AE2:AE21) -> 5 | AF22: 5 | AG22: 2 | AH22: 1 | AI22: 1 | AJ22: 3 | AK22: 7 | AL22: 6 | AM22: 6 | AN22: 0 | AO22: 4 | AP22: 4 | AQ22: 8 | AR22: 1 | AS22: 5 | AT22: 5 | AU22: =COUNTIFS(AU2:AU21,">0") -> 11 | AV22: =COUNT(AV2:AV21) -> 0 | AW22: 6 | AX22: 6 | AY22: 1 | AZ22: 6 | BA22: 4 | BB22: 0 | BC22: 4 | BD22: 3 | BE22: 1 | BF22: 3 | BG22: 4 | BH22: =COUNTIFS(BH2:BH21,">0") -> 9 | BI22: =COUNT(BI2:BI21) -> 5 | BJ22: 3 | BK22: 1 | BL22: 4 | BM22: 4 | BN22: 1 | BO22: 4 | BP22: 5 | BQ22: 5 | BR22: 5 | BS22: 1 | BT22: 1 | BU22: 2 | BV22: 0 | BW22: 2 | BX22: =COUNTIFS(BX2:BX21,">0") -> 9 | BY22: =COUNT(BY2:BY21) -> 6 | BZ22: 5 | CA22: 5 | CB22: 1 | CC22: 5 | CD22: 4 | CE22: 2 | CF22: 0 | CG22: 3 | CH22: 5 | CI22: 0 | CJ22: 5 | CK22: 7 | CL22: 6 | CM22: 6 | CN22: 6 | CO22: =COUNTIFS(CO2:CO21,">0") -> 10 | CP22: =COUNT(CP2:CP21) -> 3 | CQ22: 3 | CR22: 3 | CS22: 3 | CT22: 0 | CU22: 3 | CV22: 1 | CW22: 3 | CX22: 0 | CY22: 1 | CZ22: 2 | DA22: 4 | DB22: =COUNTIFS(DB2:DB21,">0") -> 8 | DC22: =COUNT(DC2:DC21) -> 0 | DD22: =COUNTIFS(DD2:DD21,">0") -> 0 | DE22: =COUNTIFS(DE2:DE21,">0") -> 12

Sheet Jeugd -18j - Ptn
B1: 2015 JEUGD -18j - Punten | D1: 2015-02-14 | E1: 2015-02-15 | F1: 2015-02-21 | G1: 2015-02-22 | H1: 2015-02-28 | I1: Februari | J1: 2015-03-01 | K1: 2015-03-07 | L1: 2015-03-08 | M1: 2015-03-14 | N1: 2015-03-15 | O1: 2015-03-21 | P1: 2015-03-22 | Q1: 2015-03-28 | R1: 2015-03-29 | S1: Maart | T1: 2015-03-01 | U1: 2015-03-07 | V1: 2015-03-08 | W1: 2015-03-14 | X1: 2015-03-15 | Y1: 2015-03-21 | Z1: 2015-03-22 | AA1: 2015-03-28 | AB1: 2015-03-29 | AC1: April | AD1: 2015-05-01 | AE1: 2015-05-02 | AF1: 2015-05-03 | AG1: 2015-05-07 | AH1: 2015-05-09 | AI1: 2015-05-10 | AJ1: 2015-05-14 | AK1: 2015-05-14 | AL1: 2015-05-16 | AM1: 2015-05-17 | AN1: 2015-05-21 | AO1: 2015-05-23 | AP1: 2015-05-24 | AQ1: 2015-05-25 | AR1: 2015-05-28 | AS1: 2015-05-30 | AT1: 2015-05-31 | AU1: Mei | AV1: 2015-06-04 | AW1: 2015-06-06 | AX1: 2015-06-07 | AY1: 2015-06-11 | AZ1: 2015-06-13 | BA1: 2015-06-14 | BB1: ETENTJE 14/06 | BC1: 2015-06-18 | BD1: 2015-06-20 | BE1: 2015-06-21 | BF1: 2015-06-25 | BG1: 2015-06-27 | BH1: 2015-06-28 | BI1: Juni | BJ1: 2015-07-04 | BK1: 2015-07-05 | BL1: 2015-07-09 | BM1: 2015-07-11 | BN1: 2015-07-12 | BO1: 2015-07-16 | BP1: 2015-07-18 | BQ1: 2015-07-19 | BR1: 2015-07-21 | BS1: 2015-07-23 | BT1: 2015-07-23 | BU1: 2015-07-25 | BV1: 2015-07-26 | BW1: 2015-07-30 | BX1: 2015-07-30 | BY1: Juli | BZ1: 2015-08-01 | CA1: 2015-08-02 | CB1: 2015-08-06 | CC1: 2015-08-06 | CD1: 2015-08-08 | CE1: 2015-08-09 | CF1: 2015-08-13 | CG1: 2015-08-13 | CH1: 2015-08-15 | CI1: 2015-08-16 | CJ1: 2015-08-20 | CK1: 2015-08-22 | CL1: 2015-08-23 | CM1: 2015-08-27 | CN1: 2015-08-29 | CO1: 2015-08-30 | CP1: Augustus | CQ1: 2014-09-03 | CR1: 2014-09-04 | CS1: 2014-09-06 | CT1: 2014-09-07 | CU1: 2014-09-10 | CV1: 2014-09-13 | CW1: 2014-09-14 | CX1: 2014-09-19 | CY1: 2014-09-20 | CZ1: 2014-09-21 | DA1: 2014-09-27 | DB1: 2014-09-28 | DC1: September | DE1: Permanenten | DF1: EINDSTAND
A2: 1 | B2: Anseau Jarne | I2: =SUM(D2:G2) -> 0 | S2: =SUM(J2:R2) -> 0 | AC2: =SUM(T2:AB2) -> 0 | AU2: =SUM(AD2:AT2) -> 0 | BI2: =SUM(AV2:BH2) -> 0 | BY2: =SUM(BL2:BX2) -> 0 | CP2: =SUM(BZ2:CO2) -> 0 | DC2: =SUM(CQ2:DB2) -> 0 | DE2: =SUM(DD2:DD2) -> 0 | DF2: =I2+S2+AC2+AU2+BI2+BY2+CP2+DC2+DE2 -> 0
A3: =A2+1 -> 2 | B3: Anseau Joran | I3: 0 | S3: 0 | AC3: 0 | AU3: 0 | BI3: 0 | BY3: 0 | CP3: 0 | DC3: 0 | DE3: 0 | DF3: 0
A4: =A3+1 -> 3 | B4: Baeyens Clara | I4: =SUM(D4:G4) -> 0 | S4: 0 | AC4: =SUM(T4:AB4) -> 0 | AU4: =SUM(AD4:AT4) -> 0 | BI4: =SUM(AV4:BH4) -> 0 | BY4: 0 | CP4: =SUM(BZ4:CO4) -> 0 | DC4: =SUM(CQ4:DB4) -> 0 | DE4: =SUM(DD4:DD4) -> 0 | DF4: 0
A5: 4 | B5: Mincke Yorgen | I5: 0 | S5: 0 | AC5: 0 | AU5: 0 | BI5: 0 | BY5: 0 | CP5: 0 | DC5: 0 | DE5: 0 | DF5: 0
A6: 5 | B6: Peeters Jolien | I6: 0 | S6: 0 | AC6: 0 | AU6: 0 | BI6: 0 | BY6: 0 | CP6: 0 | DC6: 0 | DE6: 0 | DF6: 0
A7: 6 | B7: Rokegem Iefke | I7: 0 | S7: 0 | AC7: 0 | AU7: 0 | BI7: 0 | BY7: 0 | CP7: 0 | DC7: 0 | DE7: 0 | DF7: 0
A8: 7 | B8: Rokegem Silke | I8: 0 | S8: 0 | AC8: 0 | AU8: 0 | BI8: 0 | BY8: 0 | CP8: 0 | DC8: 0 | DE8: 0 | DF8: 0
A9: 8 | B9: Van Cleemputte Ferre | D9: 2 | I9: 2 | S9: 0 | AC9: 0 | AJ9: 2 | AL9: 2 | AP9: 1 | AU9: 5 | BD9: 2 | BG9: 2 | BI9: 4 | BQ9: 2 | BS9: 2 | BY9: 4 | CP9: 0 | DC9: 0 | DE9: 0 | DF9: 15
D10: =COUNT(D2:D9) -> 1 | E10: =COUNT(E2:E9) -> 0 | F10: =COUNT(F2:F9) -> 0 | G10: =COUNT(G2:G9) -> 0 | H10: =COUNT(H2:H9) -> 0 | I10: =COUNTIFS(I2:I9,">0") -> 1 | J10: =COUNT(J2:J9) -> 0 | K10: 0 | L10: 0 | M10: 0 | N10: 0 | O10: 0 | P10: 0 | Q10: 0 | R10: 0 | S10: =COUNTIFS(S2:S9,">0") -> 0 | T10: =COUNT(T2:T9) -> 0 | U10: 0 | V10: 0 | W10: 0 | X10: 0 | Y10: 0 | Z10: 0 | AA10: 0 | AB10: 0 | AC10: =COUNTIFS(AC2:AC9,">0") -> 0 | AD10: =COUNT(AD2:AD9) -> 0 | AE10: 0 | AF10: 0 | AG10: 0 | AH10: 0 | AI10: 0 | AJ10: 1 | AK10: 0 | AL10: 1 | AM10: 0 | AN10: 0 | AO10: 0 | AP10: 1 | AQ10: 0 | AR10: 0 | AS10: 0 | AT10: 0 | AU10: =COUNTIFS(AU2:AU9,">0") -> 1 | AV10: =COUNT(AV2:AV9) -> 0 | AW10: 0 | AX10: 0 | AY10: 0 | AZ10: 0 | BA10: 0 | BB10: 0 | BC10: 0 | BD10: 1 | BE10: 0 | BF10: 0 | BG10: 1 | BH10: 0 | BI10: =COUNTIFS(BI2:BI9,">0") -> 1 | BJ10: =COUNT(BJ2:BJ9) -> 0 | BK10: 0 | BL10: 0 | BM10: 0 | BN10: 0 | BO10: 0 | BP10: 0 | BQ10: 1 | BR10: 0 | BS10: 1 | BT10: 0 | BU10: 0 | BV10: 0 | BW10: 0 | BX10: 0 | BY10: =COUNTIFS(BY2:BY9,">0") -> 1 | BZ10: =COUNT(BZ2:BZ9) -> 0 | CA10: 0 | CB10: 0 | CC10: 0 | CD10: 0 | CE10: 0 | CF10: 0 | CG10: 0 | CH10: 0 | CI10: 0 | CJ10: 0 | CK10: 0 | CL10: 0 | CM10: 0 | CN10: 0 | CO10: 0 | CP10: =COUNTIFS(CP2:CP9,">0") -> 0 | CQ10: =COUNT(CQ2:CQ9) -> 0 | CR10: 0 | CS10: 0 | CT10: 0 | CU10: 0 | CV10: 0 | CW10: 0 | CX10: 0 | CY10: 0 | CZ10: 0 | DA10: 0 | DB10: 0 | DC10: =COUNTIFS(DC2:DC9,">0") -> 0 | DD10: =COUNT(DD2:DD9) -> 0 | DE10: =COUNTIFS(DE2:DE9,">0") -> 0 | DF10: =COUNTIFS(DF2:DF9,">0") -> 1

Sheet Jeugd -18j Kms
B1: 2015 JEUGD -18j - Kms | C1: 2015-02-14 | D1: 2015-02-15 | E1: 2015-02-21 | F1: 2015-02-22 | G1: 2015-02-28 | H1: Februari | I1: 2015-03-01 | J1: 2015-03-07 | K1: 2015-03-08 | L1: 2015-03-14 | M1: 2015-03-15 | N1: 2015-03-21 | O1: 2015-03-22 | P1: 2015-03-28 | Q1: 2015-03-29 | R1: Maart | S1: 2015-03-01 | T1: 2015-03-07 | U1: 2015-03-08 | V1: 2015-03-14 | W1: 2015-03-15 | X1: 2015-03-21 | Y1: 2015-03-22 | Z1: 2015-03-28 | AA1: 2015-03-29 | AB1: April | AC1: 2015-05-01 | AD1: 2015-05-02 | AE1: 2015-05-03 | AF1: 2015-05-07 | AG1: 2015-05-09 | AH1: 2015-05-10 | AI1: 2015-05-14 | AJ1: 2015-05-14 | AK1: 2015-05-16 | AL1: 2015-05-17 | AM1: 2015-05-21 | AN1: 2015-05-23 | AO1: 2015-05-24 | AP1: 2015-05-25 | AQ1: 2015-05-28 | AR1: 2015-05-30 | AS1: 2015-05-31 | AT1: Mei | AU1: 2015-06-04 | AV1: 2015-06-06 | AW1: 2015-06-07 | AX1: 2015-06-11 | AY1: 2015-06-13 | AZ1: 2015-06-14 | BA1: 2015-06-18 | BB1: 2015-06-20 | BC1: 2015-06-21 | BD1: 2015-06-25 | BE1: 2015-06-27 | BF1: 2015-06-28 | BG1: Juni | BH1: 2015-07-04 | BI1: 2015-07-05 | BJ1: 2015-07-09 | BK1: 2015-07-11 | BL1: 2015-07-12 | BM1: 2015-07-16 | BN1: 2015-07-18 | BO1: 2015-07-19 | BP1: 2015-07-21 | BQ1: 2015-07-23 | BR1: 2015-07-23 | BS1: 2015-07-25 | BT1: 2015-07-26 | BU1: 2015-07-30 | BV1: 2015-07-30 | BW1: Juli | BX1: 2015-08-01 | BY1: 2015-08-02 | BZ1: 2015-08-06 | CA1: 2015-08-06 | CB1: 2015-08-08 | CC1: 2015-08-09 | CD1: 2015-08-13 | CE1: 2015-08-13 | CF1: 2015-08-15 | CG1: 2015-08-16 | CH1: 2015-08-20 | CI1: 2015-08-22 | CJ1: 2015-08-23 | CK1: 2015-08-27 | CL1: 2015-08-29 | CM1: 2015-08-30 | CN1: Augustus | CO1: 2014-09-03 | CP1: 2014-09-04 | CQ1: 2014-09-06 | CR1: 2014-09-07 | CS1: 2014-09-10 | CT1: 2014-09-13 | CU1: 2014-09-14 | CV1: 2014-09-19 | CW1: 2014-09-20 | CX1: 2014-09-21 | CY1: 2014-09-27 | CZ1: 2014-09-28 | DA1: September | DC1: Permanenten | DD1: EINDSTAND
A2: 1 | B2: Anseau Jarne | H2: =SUM(C2:F2) -> 0 | R2: =SUM(I2:Q2) -> 0 | AB2: =SUM(S2:AA2) -> 0 | AT2: =SUM(AC2:AS2) -> 0 | BG2: =SUM(AU2:BF2) -> 0 | BW2: =SUM(BJ2:BV2) -> 0 | CN2: =SUM(BX2:CM2) -> 0 | DA2: =SUM(CO2:CZ2) -> 0 | DC2: =SUM(DB2:DB2) -> 0 | DD2: =H2+R2+AB2+AT2+BG2+BW2+CN2+DA2+DC2 -> 0
A3: =A2+1 -> 2 | B3: Anseau Joran | H3: 0 | R3: 0 | AB3: 0 | AT3: 0 | BG3: 0 | BW3: 0 | CN3: 0 | DA3: 0 | DC3: 0 | DD3: 0
A4: =A3+1 -> 3 | B4: Baeyens Clara | H4: =SUM(C4:F4) -> 0 | R4: 0 | AB4: =SUM(S4:AA4) -> 0 | AT4: =SUM(AC4:AS4) -> 0 | BG4: =SUM(AU4:BF4) -> 0 | BW4: 0 | CN4: =SUM(BX4:CM4) -> 0 | DA4: =SUM(CO4:CZ4) -> 0 | DC4: =SUM(DB4:DB4) -> 0 | DD4: 0
A5: 4 | B5: Mincke Yorgen | H5: 0 | R5: 0 | AB5: 0 | AT5: 0 | BG5: 0 | BW5: 0 | CN5: 0 | DA5: 0 | DC5: 0 | DD5: 0
A6: 5 | B6: Peeters Jolien | H6: 0 | R6: 0 | AB6: 0 | AT6: 0 | BG6: 0 | BW6: 0 | CN6: 0 | DA6: 0 | DC6: 0 | DD6: 0
A7: 6 | B7: Rokegem Iefke | H7: 0 | R7: 0 | AB7: 0 | AT7: 0 | BG7: 0 | BW7: 0 | CN7: 0 | DA7: 0 | DC7: 0 | DD7: 0
A8: 7 | B8: Rokegem Silke | H8: 0 | R8: 0 | AB8: 0 | AT8: 0 | BG8: 0 | BW8: 0 | CN8: 0 | DA8: 0 | DC8: 0 | DD8: 0
A9: 8 | B9: Van Cleemputte Ferre | C9: 50 | H9: 50 | R9: 0 | AB9: 0 | AI9: 70 | AK9: 85 | AO9: 88 | AT9: 243 | BB9: 60 | BE9: 90 | BG9: 150 | BO9: 70 | BQ9: 55 | BW9: 125 | CN9: 0 | DA9: 0 | DC9: 0 | DD9: 568
C10: =COUNT(C2:C9) -> 1 | D10: =COUNT(D2:D9) -> 0 | E10: =COUNT(E2:E9) -> 0 | F10: =COUNT(F2:F9) -> 0 | G10: =COUNT(G2:G9) -> 0 | H10: =COUNTIFS(H2:H9,">0") -> 1 | I10: =COUNT(I2:I9) -> 0 | J10: 0 | K10: 0 | L10: 0 | M10: 0 | N10: 0 | O10: 0 | P10: 0 | Q10: 0 | R10: =COUNTIFS(R2:R9,">0") -> 0 | S10: =COUNT(S2:S9) -> 0 | T10: 0 | U10: 0 | V10: 0 | W10: 0 | X10: 0 | Y10: 0 | Z10: 0 | AA10: 0 | AB10: =COUNTIFS(AB2:AB9,">0") -> 0 | AC10: =COUNT(AC2:AC9) -> 0 | AD10: 0 | AE10: 0 | AF10: 0 | AG10: 0 | AH10: 0 | AI10: 1 | AJ10: 0 | AK10: 1 | AL10: 0 | AM10: 0 | AN10: 0 | AO10: 1 | AP10: 0 | AQ10: 0 | AR10: 0 | AS10: 0 | AT10: =COUNTIFS(AT2:AT9,">0") -> 1 | AU10: =COUNT(AU2:AU9) -> 0 | AV10: 0 | AW10: 0 | AX10: 0 | AY10: 0 | AZ10: 0 | BA10: 0 | BB10: 1 | BC10: 0 | BD10: 0 | BE10: 1 | BF10: 0 | BG10: =COUNTIFS(BG2:BG9,">0") -> 1 | BH10: =COUNT(BH2:BH9) -> 0 | BI10: 0 | BJ10: 0 | BK10: 0 | BL10: 0 | BM10: 0 | BN10: 0 | BO10: 1 | BP10: 0 | BQ10: 1 | BR10: 0 | BS10: 0 | BT10: 0 | BU10: 0 | BV10: 0 | BW10: =COUNTIFS(BW2:BW9,">0") -> 1 | BX10: =COUNT(BX2:BX9) -> 0 | BY10: 0 | BZ10: 0 | CA10: 0 | CB10: 0 | CC10: 0 | CD10: 0 | CE10: 0 | CF10: 0 | CG10: 0 | CH10: 0 | CI10: 0 | CJ10: 0 | CK10: 0 | CL10: 0 | CM10: 0 | CN10: =COUNTIFS(CN2:CN9,">0") -> 0 | CO10: =COUNT(CO2:CO9) -> 0 | CP10: 0 | CQ10: 0 | CR10: 0 | CS10: 0 | CT10: 0 | CU10: 0 | CV10: 0 | CW10: 0 | CX10: 0 | CY10: 0 | CZ10: 0 | DA10: =COUNTIFS(DA2:DA9,">0") -> 0 | DB10: =COUNT(DB2:DB9) -> 0 | DC10: =COUNTIFS(DC2:DC9,">0") -> 0 | DD10: =COUNTIFS(DD2:DD9,">0") -> 1
